Workbook

Sheet info
B2: INCOMETAX 2021-22 SOFTWARE में आपका स्वागत है
B3: करणीय कार्य
B4: यह प्रोग्राम विशेषकर राजस्थान के सभी शिक्षा' विभाग के कर्मचारीगण हेतु सरल,सहज,एंव स्मार्ट तरीके से बनाया गया है
B5: 1 | C5: GA 55 SHEET
C6: दोस्तों सबसे पहले GA55 SHEET में YELLO SHELL में ENTRY करे
C7: इसके बाद मार्च माह का वेतन ENTER करे और आपसे संबधित जानकारी का चुनाव करे और आपका GA 55 तैयार है
C8: आयकर स्लैब का चयन करे
C9: कटौती में GPF,SIP,GPF LOAN,INCOMETAX इत्यादि की entry करे बाकी cell ऑटो जनरेट है BILL NO एंव TV NO MANUAL FEED करे
B10: 2 | C10: 7 PAY MATRIX CHART
C11: इस sheet को लॉक किया गया है आप अपना लेवल के अनुसार basic पे देख सकते है !
B12: 3 | C12: TAX CALCULATION
C13: यह sheet भी लॉक है आप OLD TAX REGIME और NEW TAX REGIME में आपके लिए कोनसी BETTER है का चुनाव कर सकते है
B14: 4 | C14: OLD TAX REGIME
C15: इस sheet में आयकर विभाग द्वारा जिस धारा की छूट GA 55 के अलावा है तो DARK cell में entry करे
B16: 5 | C16: NEW TAX REGIME
C17: इस sheet में आयकर विभाग द्वारा 70% प्रकार की छूट नहीं है केवल NPS कर्मचारी अंशदान की छूट ले सकता है
B18: 6 | C18: PAY SLIP
C19: यदि आपने GA55 कम्पलीट भर दिया है तो इसमें माह का चुनाव करके अपनी माहवार वेतन पर्ची print ले सकते है
B21: आपकी सुरक्षा ही मेरी उर्जा है अतः कोविड नियमो का पालन करे | F21: आप मेरा youtube चैनल भी देख और SUBSCRIBE और LIKE कर सकते है | L21: https://youtu.be/3yHQVnwH1W0
D23: दोस्तों यह PROGRAMME आपको कैसा लगा मेरी MAIL ID पर जरुर बताये
D24: आपका विजय कुमार प्रजापत अध्यापक
D25: राजकीय उच्च माध्यमिक विद्यालय आलनियावास तह. रियां बड़ी जिला- नागौर
G26: 9828120697 | I26: कृपया इस नम्बर पर केवल MASSAGE करे CALL नहीं करे
D27: मेरे प्रेरणास्रोत --- अश्विनीकुमारजी,किशन जी सेन,विष्णुजी शर्मा,मोहम्मद शरीफ जी,परमानन्द जी,हीरालाल जी जाट और आप
D28: कृपया मेरे अन्य सभी SOFTWARE एंव अन्य शैक्षिक उपयोगी जानकारी हेतु इन LINKS पर जाये | G28: http://www.rajsevak.com/VIJAY-KUMAR-PRAJAPAT-SOFTWARE/ | J28: http://www.ashwinisharma.com/p/vijay-kumar-excel-sheet-expert.html | N28: http://www.shalasugam.com/vijay-kumar-excel-expert/
D31: नोट-- यह programe आपकी सुविधा हेतु बनाया गया है एंव GA55 से TALLY करके बनाये औरआयकर विभाग के नियम ही अंतिम होंगे| | J31: https://rajteacher.net/vijay-kumar-prajapat | N31: यह software PC,LAPTOP एंव MOBILE पर भी USE कर सकते है मोबाइल में WPS जैसे APP हो एंव EDIT OPTION में प्रत्येक cell में entry करे
B33: KEEP YOUR FACE ALWAYS IN SUNSHINE | H33: ANY SUGGESTION AND QUERY PLS CONTACT ME | K33: MAIL ID- gupskalani@gmail.com

Sheet GA55
B1: आप आयकर गणना प्रपत्र पुराना लेना चाहते है तो DROPDOWN MENU में OLD अथवा नए के लिए new का चयन करे | | W1: OLD | X1: TAX | Y1: =IF(W1="OLD",'OLD TAX REGIME'!M55,'NEW TAX REGIME'!M56) -> 43921 | AY1: SIP,SIL,GPF,LIC, GIL,IT की कटोती MANUAL मार्च21 से करे
B2: क्या आप 01.01.2004 के बाद नियुक्त है तो DROPDOWN मेनू में YES अथवा NO का चयन करे| | W2: YES | X2: HRA | AC2: =IF(W2="yes",AB13,IF(W2="no",AC16)) -> 6119 | AM2: 1 | AN2: =W9 -> 52300 | AO2: 31 | AP2: =AN2/AO2*15 -> 25306.45161 | AQ2: =ROUND(AP2,0) -> 25306 | AR2: =ROUND(AQ2*17/100,0) -> 4302
B3: कर्मचारी का राज्य सेवा में प्रकार | I3: REGULAR | K3: क्या आपको बोनस मिला है तो YES अथवा NO का चयन करे | W3: YES | AF3: 8% | AM3: 2 | AN3: =D14 -> 52300 | AO3: 29 | AP3: =AN3/AO3*15 -> 27051.72414 | AQ3: =ROUND(AP3,0) -> 27052 | AR3: =ROUND(AQ3*17/100,0) -> 4599
B4: क्या आपको समर्पित अवकाश मिला है तो YES अथवा NO का चयन करे | P4: NO | Q4: किस माह में उठाया | W4: 10 | AC4: YES | AE4: ,uih,l | AF4: 16% | AM4: 3 | AN4: =D15 -> 52300 | AO4: 31 | AP4: 25306.45161 | AQ4: 25306 | AR4: 4302 | AV4: OLD
B5: क्या आपको विशेषयोग्यजन कर्मचारी भत्ता मिलता है| | L5: NO | M5: क्या आपको मार्च2020 का एरियर भुगतान इस वर्ष मिला है | W5: YES | X5: 9% | AE5: thih,Q | AM5: 4 | AN5: =D16 -> 52300 | AO5: 30 | AP5: 26150 | AQ5: 26150 | AR5: 4446 | AV5: NEW
B6: NPS के कर्मचारी RGHS में स्वेच्छिक कटोती करवाना चाहते है | L6: YES | M6: क्या आपको HRA की छूट देय है | W6: YES | AM6: 0 | AR6: 0
B7: OFFICE GOVT.SR.SEC.SCHOOL ALNIYAWAS DISTT.-NAGAUR | AC7: REGULAR | AD7: YES | AM7: 5 | AN7: =D17 -> 53900 | AO7: 31 | AP7: 26080.64516 | AQ7: 26081 | AR7: 4434 | BF7: OLD TAX REGIME
B8: वेतन एंव कर निर्धारण वर्ष 2021-22 | S8: आयकर स्लैब का चयन | W8: OLD TAX REGIME | AC8: PROBATION | AD8: NO | AE8: YES | AF8: surender | AG8: 2 | AM8: 6 | AN8: 53900 | AO8: 30 | AP8: 26950 | AQ8: 26950 | AR8: 4582 | BF8: NEW TAX REGIME
B9: नाम कर्मचारी | D9: VIJAY KUMAR PRAJAPAT | I9: पद | J9: lecturer | N9: पेन न | O9: QYPP0000J | S9: Basic Pay (IN MARCH) | W9: 52300 | AD9: =IF(AC4>="YES",(D13+E13)*10/100) -> 6119.1 | AE9: NO | AM9: 7 | AN9: 53900 | AO9: 31 | AP9: 26080.64516 | AQ9: 26081 | AR9: =ROUND(AQ9*31/100,0) -> 8085 | BB9: ( OLD TAX REGIME )
B10: राज्य बीमा | D10: 0 | F10: जीपीएफ/एनपीएस | H10: 111111111111 | L10: बैंक ब्रांच | M10: STATE BANK OF INDIA RIYAN BARI | U10: Bank A/c | W10: 61000000000 | AA10: =ROUND(W9-(W9*0.03),2) -> 50731 | AB10: =ROUND(AA10,-2) -> 50700 | AF10: =VLOOKUP(L5,B13:E24,3,0) ->  | AM10: 8 | AN10: 53900 | AO10: 31 | AP10: 26080.64516 | AQ10: 26081 | AR10: =ROUND(AQ10*31/100,0) -> 8085 | BB10: ( NEW TAX REGIME )
B11: आधार नम्बर | D11: 333333333333 | H11: टेन नम्बर | J11: JDHG00000H | M11: मोबाइल नम्बर | P11: 0 | T11: EMPLOYEE ID | W11: RJNA0000000000 | AM11: 9 | AN11: =D20 -> 53900 | AO11: 30 | AP11: =AN11/AO11*15 -> 26950 | AQ11: =ROUND(AP11,0) -> 26950 | AR11: 8355 | BE11: =IF(W2="YES"," "," ") -> 
B12: S. NO. | C12: Months & Year | D12: Basic pay | E12: Dearness allowance | F12: H.R.A. | G12: Handicaped allowance | H12: Washing allowance | I12: other | J12: other1 | K12: Gross pay | L12: NPS | M12: GPF | N12: GPF Loan | O12: RPMF/RGHS | P12: SIP | Q12: SIL | R12: LIC | S12: GIS | T12: GPF04 | U12: Income tax | V12: Total ded. | W12: NET PAY | X12: Bill No. | Y12: TV. No. | AC12: =AA10/31*16 -> 26183.74194 | AF12: =AF10/31*15 ->  | AG12: =ROUND(AF12,0) ->  | AH12: =AF10/31*0 ->  | AM12: 10 | AN12: 53900 | AO12: 31 | AP12: 26080.64516 | AQ12: 26081 | AR12: 8085
B13: 1 | C13: 2021-03-01 | D13: =BA13 -> 52300 | E13: =IF(I3="REGULAR",ROUND((D13*17/100),0),0) -> 8891 | F13: =IF($I$3="REGULAR",ROUND((D13*8%),0),0) -> 4184 | G13: =IF($L$5="yes",600,"") ->  | H13: 0 | K13: =SUM(D13:J13) -> 65375 | L13: =IF($W$2="yes",AB13,IF($W$2="no"," ")) -> 6119 | M13: 0 | N13: 0 | O13: =IF($W$2="no",$AJ$26," ") ->  | P13: 7000 | Q13: 0 | R13: 1070 | U13: 0 | V13: =SUM(L13:U13) -> 14189 | W13: =K13-V13 -> 51186 | X13: 111/1-4-20 | Y13: 45/4-4-2020 | AA13: =K13 -> 65375 | AB13: =ROUND(((D13+E13)*10/100),0) -> 6119 | AC13: =(AA10/31)*5 -> 8182.419355 | AD13: =ROUND(AC13,0) -> 8182 | AE13: TEACHER | AF13: 3 | AG13: B | AI13: =IF(W2="YES"," ",AJ25) ->  | AM13: 11 | AN13: 53900 | AO13: 30 | AP13: 26950 | AQ13: 26950 | AR13: 8355 | BA13: =W9 -> 52300
B14: 2 | C14: 2021-04-01 | D14: =BA14 -> 52300 | E14: =IF($I$3="REGULAR",ROUND((D14*17/100),0),0) -> 8891 | F14: =IF($I$3="REGULAR",ROUND((D14*8%),0),0) -> 4184 | G14: =IF($L$5="yes",600,"") ->  | K14: =SUM(D14:J14) -> 65375 | L14: =IF($W$2="yes",AB14,IF($W$2="no"," ")) -> 6119 | M14: =M13 -> 0 | O14: =IF($W$2="no",$AJ$26," ") ->  | P14: =P13 -> 7000 | Q14: =Q13 -> 0 | R14: 1070 | S14: 220 | U14: =U13 -> 0 | V14: =SUM(L14:U14) -> 14409 | W14: =K14-V14 -> 50966 | AA14: =K14 -> 65375 | AB14: =ROUND(((D14+E14)*10/100),0) -> 6119 | AC14: =(AA10/31)*3 -> 4909.451613 | AD14: =ROUND(AC14,0) -> 4909 | AE14: SR.TEACHER | AF14: 3 | AG14: B | AI14: =IF($W$3="YES"," ",AJ26) ->  | AM14: 12 | AN14: 53900 | AO14: 31 | AP14: 26080.64516 | AQ14: 26081 | AR14: 8085 | BA14: =W9 -> 52300
B15: 3 | C15: 2021-05-01 | D15: =BA15 -> 52300 | E15: =IF($I$3="REGULAR",ROUND((D15*17/100),0),0) -> 8891 | F15: 4184 | K15: 65375 | L15: 6119 | M15: 0 | P15: 7000 | Q15: 0 | R15: 1070 | U15: 0 | V15: =SUM(L15:U15) -> 14189 | W15: =K15-V15 -> 51186 | AA15: 65375 | AB15: 6119 | AC15: =(AA10/31)*2 -> 3272.967742 | AD15: 3273 | AE15: LECTURER | AF15: 5 | AG15: A | AI15: =IF(W4="YES"," ",AJ27) -> 330.00 | BA15: =BA14 -> 52300 | BY15: =D16 -> 52300
B16: 4 | C16: 2021-06-01 | D16: 52300 | E16: 8891 | F16: 4184 | K16: 65375 | L16: 6119 | M16: 0 | P16: 7000 | Q16: 0 | R16: 1070 | U16: 0 | V16: 14189 | W16: 51186 | AA16: 65375 | AB16: 6119 | AD16: A | AE16: HEADMASTER | AF16: 5 | AG16: A | AI16: =IF(W5="YES"," ",AJ28) ->  | BA16: =BA15 -> 52300 | BY16: =D17 -> 53900 | BZ16: =BY16*31/100 -> 16709 | CA16: =BY16*28/100 -> 15092 | CB16: =BZ16-CA16 -> 1617 | CC16: =CB16*10/100 -> 161.7 | CD16: =CB16-CC16 -> 1455.3
B17: 5 | C17: 2021-07-01 | D17: =BA17 -> 53900 | E17: =IF($I$3="REGULAR",ROUND((D17*28/100),0),0) -> 15092 | F17: 4312 | K17: 73304 | L17: 6899 | M17: 0 | O17: =IF($W$2="no",$AJ$26,IF($L$6="yes",$AJ$27," ")) -> 330 | P17: 7000 | Q17: =Q16 -> 0 | R17: =R16 -> 1070 | U17: 0 | V17: 15299 | W17: 58005 | AA17: 73304 | AB17: 6899 | AD17: A | AE17: PRINCIPAL | AF17: 5 | AG17: A | AI17: =IF(W7="YES"," ",AJ29) -> 0.00 | AJ17: RPMF RATES | BA17: =IF(I3="REGULAR",ROUND(BA16+(BA16*0.03),-2),W9) -> 53900 | BY17: =D18 -> 53900 | BZ17: =BY17*31/100 -> 16709 | CA17: =BY17*28/100 -> 15092 | CB17: =BZ17-CA17 -> 1617 | CC17: =CB17*10/100 -> 161.7 | CD17: =CB17-CC17 -> 1455.3 | DK17: =F18-F17 -> 539
B18: 6 | C18: 2021-08-01 | D18: 53900 | E18: =IF($I$3="REGULAR",ROUND((D18*28/100),0),0) -> 15092 | F18: =IF($I$3="REGULAR",ROUND((D18*$X$5),0),0) -> 4851 | K18: 73843 | L18: 6899 | M18: 0 | O18: 330 | P18: 7000 | Q18: 0 | R18: 1070 | U18: =U17 -> 0 | V18: 15299 | W18: 58544 | AA18: 73843 | AB18: 6899 | AD18: B | AE18: PRABODHAK | AF18: 3 | AG18: B | AI18: =IF(W8="YES"," ",AJ31) -> 0.00 | AJ18: PAY RANGE | AL18: 2017-10-01 | AM18: 2017-11-01 | AN18: 2019-04-01 | AO18: 2020-04-01 | BA18: =BA17 -> 53900 | BY18: 53900 | BZ18: 16709 | CA18: 15092 | CB18: 1617 | CC18: 161.7 | CD18: 1455.3
B19: 7 | C19: 2021-09-01 | D19: 53900 | E19: 15092 | F19: 4851 | K19: 73843 | L19: 6899 | M19: 0 | O19: 330 | P19: 7000 | Q19: 0 | R19: 1070 | U19: 0 | V19: 15299 | W19: 58544 | Z19: =IF($AE$32="A",(AA19/30*2),IF($AE$32="B",(AA19/30*1),IF($AE$32="C",(AA19/30*0)))) ->  | AA19: =D19+E19+F19 -> 73843 | AB19: 6899 | AD19: B | AE19: LAB. ASSISTANT | AF19: 3 | AG19: B | AI19: 0.00 | AJ19: UP TO 18000 | AL19: 205.00 | AM19: 210.00 | AN19: 242.00 | AO19: 265.00 | AP19: 242 | AQ19: 265 | AR19: 135.00 | BA19: =BA18 -> 53900 | BY19: 53900 | BZ19: 16709 | CA19: 15092 | CB19: 1617 | CC19: 161.7 | CD19: 1455.3
B20: 8 | C20: 2021-10-01 | D20: 53900 | E20: =IF($I$3="REGULAR",ROUND((D20*31/100),0),0) -> 16709 | F20: 4851 | K20: =SUM(D20:J20) -> 75460 | L20: 7061 | M20: 0 | O20: 330 | P20: =P19 -> 7000 | Q20: 0 | R20: 1070 | U20: 0 | V20: =SUM(L20:U20) -> 15461 | W20: 59999 | Z20: =IF($AE$32="A",(AA20/31*2),IF($AE$32="B",(AA20/31*1),IF($AE$32="C",(AA20/31*0)))) ->  | AA20: 75460 | AB20: 7061 | AD20: B | AE20: LIBRARIAN | AF20: 3 | AG20: B | AI20: 0.00 | AJ20: 18001 TO 33500 | AL20: 341.00 | AM20: 349.00 | AN20: 402.00 | AO20: 440.00 | AP20: 402 | AQ20: 440 | AR20: 220.00 | BA20: 53900 | CB20: =SUM(CB16:CB19) -> 6468 | CC20: =ROUND(SUM(CC16:CC19),0) -> 647 | CD20: =ROUND(SUM(CD16:CD19),0) -> 5821 | CE20: 1412 | CF20: =CD20-CE20 -> 4409
B21: 9 | C21: 2021-11-01 | D21: 53900 | E21: =IF($I$3="REGULAR",ROUND((D21*31/100),0),0) -> 16709 | F21: 4851 | K21: 75460 | L21: 7061 | M21: 0 | O21: 330 | P21: 7000 | Q21: =Q20 -> 0 | R21: 1070 | U21: 0 | V21: 15461 | W21: 59999 | Z21: =IF($AE$32="A",(AA21/30*2),IF($AE$32="B",(AA21/30*1),IF($AE$32="C",(AA21/30*0)))) ->  | AA21: 75460 | AB21: 7061 | AD21: B | AE21: A.A.O. | AF21: 3 | AG21: B | AI21: 0.00 | AJ21: 33501 TO 54000 | AL21: 511.00 | AM21: 522.00 | AN21: 602.00 | AO21: 658.00 | AP21: 602 | AQ21: 658 | AR21: 330.00 | BA21: 53900
B22: 10 | C22: 2021-12-01 | D22: 53900 | E22: 16709 | F22: 4851 | K22: 75460 | L22: 7061 | M22: 0 | O22: 330 | P22: =P21 -> 7000 | Q22: 0 | R22: 1070 | U22: 0 | V22: 15461 | W22: 59999 | AA22: 75460 | AB22: 7061 | AD22: B | AE22: SENIOR ASSISTANT | AF22: 3 | AG22: B | AI22: 0.00 | AJ22: 54001 & ABOVE | AL22: 680.00 | AM22: 695.00 | AN22: 800.00 | AO22: 875.00 | AP22: 800 | AQ22: 875 | AR22: 440.00 | BA22: 53900
B23: 11 | C23: 2022-01-01 | D23: 53900 | E23: 16709 | F23: 4851 | K23: 75460 | L23: 7061 | M23: 0 | O23: 330 | P23: =P21 -> 7000 | Q23: 0 | R23: 1070 | U23: 0 | V23: 15461 | W23: 59999 | AA23: 75460 | AB23: 7061 | AD23: C | AE23: JUNIOR ASSISTANT | AF23: 2 | AG23: C | AI23: 0.00 | BA23: 53900
B24: 12 | C24: 2022-02-01 | D24: 53900 | E24: 16709 | F24: 4851 | K24: 75460 | L24: 7061 | M24: 0 | O24: 330 | P24: =P23 -> 7000 | Q24: 0 | R24: =R23 -> 1070 | U24: 0 | V24: 15461 | W24: 59999 | Z24: =IF($AE$32="A",(AA24/28*2),IF($AE$32="B",(AA24/28*1),IF($AE$32="C",(AA24/28*0)))) ->  | AA24: 75460 | AB24: 7061 | AE24: OFFICE ASSISTANT | BA24: 53900
B25: 13 | C25: SURRENDER | D25: =IF(P4="yes",AN26,IF(P4>="No",0)) -> 0 | E25: =IF(P4="YES",VLOOKUP(W4,SDA,6,0),0) -> 0 | F25: 0 | K25: 0 | L25: 0 | V25: 0 | W25: 0 | AB25: 0 | AJ25: =IF(18000>$W$9,AP19,IF(33500>$W$9,AP20,IF(54000>$W$9,AP21,IF(,54001<$W$9,AP22)))) -> 602.00 | AK25: =ISNUMBER(AJ25) -> TRUE
B26: 14 | C26: D.A. (JULY-SEP21) | E26: =CB20 -> 6468 | K26: =SUM(D26:J26) -> 6468 | L26: =IF($W$2="yes",AB26,IF($W$2="no"," ")) -> 647 | M26: =IF(W2="no",CB20," ") ->  | T26: =IF(W2="YES",CD20,0) -> 5821 | V26: 6468 | W26: 0 | AB26: 647 | AJ26: =IF(18000>W9,AQ19,IF(33500>W9,AQ20,IF(54000>W9,AQ21,IF(,54000>W9,AQ22)))) -> 658 | AK26: =ISNUMBER(AJ26) -> TRUE | AN26: =VLOOKUP(W4,AM2:AQ15,5,0) -> 26081
B27: 15 | C27: D.A. AREAR | E27: =IF($I$3="REGULAR",ROUND((D27*26/100),0),0) -> 0 | K27: 0 | L27: 0 | M27: =IF(W2="yes"," ",K27) ->  | V27: 0 | W27: 0 | AB27: 0 | AD27: =W9*5/100*6 -> 15690 | AF27: =ROUND(AC13,0) -> 8182 | AG27: =ROUND(AC14,0) -> 4909 | AH27: =ROUND(AC15,0) -> 3273 | AJ27: =IF(18000>W9,AR19,IF(33500>W9,AR20,IF(54000>W9,AR21,IF(,54000<W9,AR22)))) -> 330
B28: 16 | C28: BONUS | D28: =AD33 -> 6774 | K28: 6774 | M28: =IF(W2="NO",BX29,0) -> 0 | T28: =IF(W2="YES",BX29,0) -> 3387 | V28: 3387 | W28: 3387 | AD28: =W9*5/100*2 -> 5230 | AU28: =K32+L32 -> 990490
B29: 17 | C29: SALARY ARREAR | F29: =DK17 -> 539 | K29: =SUM(D29:J29) -> 539 | V29: 0 | W29: 539 | AF29: PRINCIPAL | AG29: A | AH29: 5 | BX29: =K28/2 -> 3387
B30: 18 | C30: SALARY ARREAR | D30: 0
B31: 19 | C31: 2020-03-01 | D31: =IF(W5="yes",ROUND(AC12,0),0) -> 26184 | E31: =ROUND((D31*17/100),0) -> 4451 | F31: =ROUND((D31*8/100),0) -> 2095 | K31: 32730 | L31: 3064 | V31: 3064 | W31: 29666 | AB31: 3064 | AC31: =SUM(U25:U31) -> 0 | AF31: HEAD MASTER | AG31: A | AH31: 5
C32: TOTAL | D32: =SUM(D13:D31) -> 673358 | E32: =SUM(E13:E31) -> 175304 | F32: 57639 | G32: 0 | H32: 0 | I32: 0 | J32: 0 | K32: 906301 | L32: =SUM(L13:L31) -> 84189 | M32: 0 | N32: 0 | O32: =SUM(O13:O31) -> 2640 | P32: 84000 | Q32: 0 | R32: 12840 | S32: 220 | T32: 9208 | U32: =SUM(U13:U31) -> 0 | V32: =SUM(V13:V31) -> 193097 | W32: =SUM(W13:W31) -> 713204 | AD32: =IF(AE32="A",(W9/31*5),IF(AE32="B",(W9/31*3),IF(AE32="C",(W9/31*2)))) ->  | AE32: =VLOOKUP(J9,AF29:AH67,2,0) ->  | AF32: LECTURER (School Edu.) | AG32: A | AH32: 5
AB33: =AD33-AC33 -> 5080.00 | AC33: =ROUND(AD33*25/100,0) -> 1694 | AD33: =IF(W3="YES",6774,IF(W3="NO"," ")) -> 6774.00 | AF33: SENOIR TEACHER (II Gr.) | AG33: B | AH33: 3
AC34: =ROUND(AD33*20/100,0) -> 1355 | AD34: =IF(AE32="A",(AA19/31*2),IF(AE32="B",(AA19/31*1),IF(AE32="C",(AA19/31*0)))) ->  | AF34: SENOIR TEACHER (Ele.HM) | AG34: B | AH34: 3
AC35: =AC33-AC34 -> 339 | AF35: TEACHER (III Gr.) Level 2 | AG35: B | AH35: 3
C36: Signature of Employee | T36: Signature of DDO | AF36: TEACHER (III Gr.) Level 1 | AG36: B | AH36: 3
C37: =D9 -> VIJAY KUMAR PRAJAPAT | J37: vijay prajapat excel programmer9828120697 | AF37: PET (I Gr.) | AG37: A | AH37: 5
AF38: PET (II Gr.) | AG38: B | AH38: 3
AF39: PET ( III Gr.) | AG39: B | AH39: 3
AF40: SPECIAL TEACHER (III Gr.) Level 1 | AG40: B | AH40: 3
AF41: SPECIAL TEACHER (III Gr.) Level 2 | AG41: B | AH41: 3
AF42: LIBRARIAN ( I Gr.) | AG42: A | AH42: 5
AF43: LIBRARIAN ( II Gr.) | AG43: B | AH43: 3
AF44: LIBRARIAN ( III Gr.) | AG44: B | AH44: 3
AF45: LAB. ASSISTANT (II Gr.) | AG45: B | AH45: 3
AF46: LAB. ASSISTANT (II Gr.) | AG46: B | AH46: 3
AF47: LAB BOY | AG47: C | AH47: 2
AF48: COACH | AG48: A | AH48: 5
AF49: A.A.O. | AG49: B | AH49: 3
AF50: SENIOR ASSISTANT(UDC) | AG50: B | AH50: 3
AF51: JUNIOR ASSISTANT (LDC) | AG51: B | AH51: 3
AF52: OFFICE ASSISTANT ( PEON ) | AG52: C | AH52: 2
AF53: PRABODHAK ( III Gr.) LEVEL 1 | AG53: B | AH53: 3
AF54: PRABODHAK ( III Gr.) LEVEL 2 | AG54: B | AH54: 3
AF55: PRABODHAK PET.( III Gr.) LEVEL 1 | AG55: B | AH55: 3
AG56: B | AH56: 3
AG57: C | AH57: 2
AG58: A | AH58: 5
AG59: A | AH59: 5
AG60: B | AH60: 3
AG61: B | AH61: 3
AG62: B | AH62: 3
AG63: A | AH63: 5
AG64: A | AH64: 5
AG65: B | AH65: 3

Sheet 7pay matrix chart
A1: SCHEDULE-1 PART-B RULE NO.5 VI & VII | Z1: SHEDULE IV (RULE NO. 16
A2: PAY MATRIX OF STATE GOVT. SERVANTS | Z2: FIX REMUNERATION FOR PROBATIONER-TRAINEE
A3: EXISTING R.P. BAND | B3: PB-1 5200-20000 | K3: PB -2 9300-34800 | O3: PB-3 15600-39100 | V3: PB -4 37400-67000 | Z3: S.NO. | AA3: EXITING G.P. | AB3: EXITING G.P.NO. | AC3: EXITING AMOUNT OF FIXED RENUANERATION | AD3: CORRESPONDING LEVEL | AE3: FIXED REMUNERATION (WEF 01-01-17)
A5: EXIST.G.P. | B5: 1700 | C5: 1750 | D5: 1900 | E5: 2000 | F5: 2400 | G5: 2400 | H5: 2400 | I5: 2800 | J5: 2800 | K5: 3600 | L5: 4200 | M5: 4800 | N5: 5400 | O5: 5400 | P5: 6000 | Q5: 6600 | R5: 6800 | S5: 7200 | T5: 7600 | U5: 8200 | V5: 8700 | W5: 8900 | X5: 9500 | Y5: 10000
A6: EXIST.G.P. | B6: 2 | C6: 3 | D6: 4 | E6: 5 | F6: 9 | G6: 9A | H6: 9B | I6: 10 | J6: 10A | K6: 11 | L6: 12 | M6: 14 | N6: 15 | O6: 15 | P6: 16 | Q6: 17 | R6: 18 | S6: 19 | T6: 20 | U6: 21 | V6: 22 | W6: 23 | X6: 23A | Y6: 24
A7: LEVELS‏‏‏‏- | B7: L-1 | C7: L-2 | D7: L-3 | E7: L-4 | F7: L-5 | G7: L-6 | H7: L-7 | I7: L-8 | J7: L-9 | K7: L-10 | L7: L-11 | M7: L-12 | N7: L-13 | O7: L-14 | P7: L-15 | Q7: L-16 | R7: L-17 | S7: L-18 | T7: L-19 | U7: L-20 | V7: L-21 | W7: L-22 | X7: L-23 | Y7: L-24
A8: CELL NO | Z8: 1 | AA8: 2 | AB8: 3 | AC8: 4 | AD8: 5 | AE8: 6
A9: 1 | B9: 17700 | C9: 17900 | D9: 18200 | E9: 19200 | F9: 20800 | G9: 21500 | H9: 22400 | I9: 26300 | J9: 28700 | K9: 33800 | L9: 37800 | M9: 44300 | N9: 53100 | O9: 56100 | P9: 60700 | Q9: 67300 | R9: 71000 | S9: 75300 | T9: 79900 | U9: 88900 | V9: 123100 | W9: 129700 | X9: 145800 | Y9: 148800 | Z9: 1 | AA9: 1700 | AB9: 2 | AC9: 6670 | AD9: L-1 | AE9: 12400
A10: 2 | B10: =ROUND(B9+(B9*0.03),-2) -> 18200 | C10: =ROUND(C9+(C9*0.03),-2) -> 18400 | D10: =ROUND(D9+(D9*0.03),-2) -> 18700 | E10: 19800 | F10: 21400 | G10: 22100 | H10: 23100 | I10: 27100 | J10: 29600 | K10: 34800 | L10: 38900 | M10: 45600 | N10: 54700 | O10: 57800 | P10: 62500 | Q10: 69300 | R10: 73100 | S10: 77600 | T10: 82300 | U10: 91600 | V10: 126800 | W10: 133600 | X10: 150200 | Y10: 153300 | Z10: 2 | AA10: 1750 | AB10: 3 | AC10: 7000 | AD10: L-2 | AE10: 12600
A11: 3 | B11: =ROUND(B10+(B10*0.03),-2) -> 18700 | C11: 19000 | D11: 19300 | E11: 20400 | F11: 22000 | G11: 22800 | H11: 23800 | I11: 27900 | J11: 30500 | K11: 35800 | L11: 40100 | M11: 47000 | N11: 56300 | O11: 59500 | P11: 64400 | Q11: 71400 | R11: 75300 | S11: 79900 | T11: 84800 | U11: 94300 | V11: 130600 | W11: 137600 | X11: 154700 | Y11: 157900 | Z11: 3 | AA11: 1900 | AB11: 4 | AC11: 7400 | AD11: L-3 | AE11: 12800
A12: 4 | B12: 19300 | C12: 19600 | D12: 19900 | E12: 21000 | F12: 22700 | G12: 23500 | H12: 24500 | I12: 28700 | J12: 31400 | K12: 36900 | L12: 41300 | M12: 48400 | N12: 58000 | O12: 61300 | P12: 66300 | Q12: 73500 | R12: 77600 | S12: 82300 | T12: 87300 | U12: 97100 | V12: 134500 | W12: 141700 | X12: 159300 | Y12: 162600 | Z12: 4 | AA12: 2000 | AB12: 5 | AC12: 7790 | AD12: L-4 | AE12: 13500
A13: 5 | B13: 19900 | C13: 20200 | D13: 20500 | E13: 21600 | F13: 23400 | G13: 24200 | H13: 25200 | I13: 29600 | J13: 32300 | K13: 38000 | L13: 42500 | M13: 49900 | N13: 59700 | O13: 63100 | P13: 68300 | Q13: 75700 | R13: 79900 | S13: 84800 | T13: 89900 | U13: 100000 | V13: 138500 | W13: 146000 | X13: 164100 | Y13: 167500 | Z13: 5 | AA13: 2400 | AB13: 9 | AC13: 7790 | AD13: L-5 | AE13: 14600
A14: 6 | B14: 20500 | C14: 20800 | D14: 21100 | E14: 22200 | F14: 24100 | G14: 24900 | H14: 26000 | I14: 30500 | J14: 33300 | K14: 39100 | L14: 43800 | M14: 51400 | N14: 61500 | O14: 65000 | P14: 70300 | Q14: 78000 | R14: 82300 | S14: 87300 | T14: 92600 | U14: 103000 | V14: 142700 | W14: 150400 | X14: 169000 | Y14: 172500 | Z14: 6 | AA14: 2400 | AB14: 9A | AC14: 8910 | AD14: L-6 | AE14: 15100
A15: 7 | B15: 21100 | C15: 21400 | D15: 21700 | E15: 22900 | F15: 24800 | G15: 25600 | H15: 26800 | I15: 31400 | J15: 34300 | K15: 40300 | L15: 45100 | M15: 52900 | N15: 63300 | O15: 67000 | P15: 72400 | Q15: 80300 | R15: 84800 | S15: 89900 | T15: 95400 | U15: 106100 | V15: 147000 | W15: 154900 | X15: 174100 | Y15: 177700 | Z15: 7 | AA15: 2400 | AB15: 9B | AC15: 8910 | AD15: L-7 | AE15: 15700
A16: 8 | B16: 21700 | C16: 22000 | D16: 22400 | E16: 23600 | F16: 25500 | G16: 26400 | H16: 27600 | I16: 32300 | J16: 35300 | K16: 41500 | L16: 46500 | M16: 54500 | N16: 65200 | O16: 69000 | P16: 74600 | Q16: 82700 | R16: 87300 | S16: 92600 | T16: 98300 | U16: 109300 | V16: 151400 | W16: 159500 | X16: 179300 | Y16: 183000 | Z16: 8 | AA16: 2800 | AB16: 10 | AC16: 11820 | AD16: L-8 | AE16: 18500
A17: 9 | B17: 22400 | C17: 22700 | D17: 23100 | E17: 24300 | F17: 26300 | G17: 27200 | H17: 28400 | I17: 33300 | J17: 36400 | K17: 42700 | L17: 47900 | M17: 56100 | N17: 67200 | O17: 71100 | P17: 76800 | Q17: 85200 | R17: 89900 | S17: 95400 | T17: 101200 | U17: 112600 | V17: 155900 | W17: 164300 | X17: 184700 | Y17: 188500 | Z17: 9 | AA17: 2800 | AB17: 10A | AC17: 11820 | AD17: L-9 | AE17: 20100
A18: 10 | B18: 23100 | C18: 23400 | D18: 23800 | E18: 25000 | F18: 27100 | G18: 28000 | H18: 29300 | I18: 34300 | J18: 37500 | K18: 44000 | L18: 49300 | M18: 57800 | N18: 69200 | O18: 73200 | P18: 79100 | Q18: 87800 | R18: 92600 | S18: 98300 | T18: 104200 | U18: 116000 | V18: 160600 | W18: 169200 | X18: 190200 | Y18: 194200 | Z18: 10 | AA18: 3600 | AB18: 11 | AC18: 13200 | AD18: L-10 | AE18: 23700
A19: 11 | B19: 23800 | C19: 24100 | D19: 24500 | E19: 25800 | F19: 27900 | G19: 28800 | H19: 30200 | I19: 35300 | J19: 38600 | K19: 45300 | L19: 50800 | M19: 59500 | N19: 71300 | O19: 75400 | P19: 81500 | Q19: 90400 | R19: 95400 | S19: 101200 | T19: 107300 | U19: 119500 | V19: 165400 | W19: 174300 | X19: 195900 | Y19: 200000 | Z19: 11 | AA19: 4200 | AB19: 12 | AC19: 14660 | AD19: L-11 | AE19: 26500
A20: 12 | B20: 24500 | C20: 24800 | D20: 25200 | E20: 26600 | F20: 28700 | G20: 29700 | H20: 31100 | I20: 36400 | J20: 39800 | K20: 46700 | L20: 52300 | M20: 61300 | N20: 73400 | O20: 77700 | P20: 83900 | Q20: 93100 | R20: 98300 | S20: 104200 | T20: 110500 | U20: 123100 | V20: 170400 | W20: 179500 | X20: 201800 | Y20: 206000 | Z20: 12 | AA20: 4800 | AB20: 14 | AC20: 17230 | AD20: L-12 | AE20: 31100
A21: 13 | B21: 25200 | C21: 25500 | D21: 26000 | E21: 27400 | F21: 29600 | G21: 30600 | H21: 32000 | I21: 37500 | J21: 41000 | K21: 48100 | L21: 53900 | M21: 63100 | N21: 75600 | O21: 80000 | P21: 86400 | Q21: =ROUND(Q20+(Q20*0.03),-2) -> 95900 | R21: 101200 | S21: 107300 | T21: 113800 | U21: 126800 | V21: 175500 | W21: 184900 | X21: 207900 | Y21: 212200 | Z21: 13 | AA21: 5400 | AB21: 15 | AC21: 22180 | AD21: L-14 | AE21: 39300
A22: 14 | B22: 26000 | C22: 26300 | D22: 26800 | E22: 28200 | F22: 30500 | G22: 31500 | H22: 33000 | I22: 38600 | J22: 42200 | K22: 49500 | L22: 55500 | M22: 65000 | N22: 77900 | O22: 82400 | P22: 89000 | Q22: 98800 | R22: 104200 | S22: 110500 | T22: 117200 | U22: 130600 | V22: 180800 | W22: 190400 | X22: 214100 | Y22: 218600 | Z22: 14 | AA22: 6000 | AB22: 16 | AC22: 24030 | AD22: L-15 | AE22: 42500
A23: 15 | B23: 26800 | C23: 27100 | D23: 27600 | E23: 29000 | F23: 31400 | G23: 32400 | H23: 34000 | I23: 39800 | J23: 43500 | K23: 51000 | L23: 57200 | M23: 67000 | N23: 80200 | O23: 84900 | P23: 91700 | Q23: 101800 | R23: 107300 | S23: 113800 | T23: 120700 | U23: 134500 | V23: 186200 | W23: 196100 | Z23: 15 | AA23: 6600 | AB23: 17 | AC23: 26670 | AD23: L-16 | AE23: 47200
A24: 16 | B24: 27600 | C24: 27900 | D24: 28400 | E24: 29900 | F24: 32300 | G24: 33400 | H24: 35000 | I24: 41000 | J24: 44800 | K24: 52500 | L24: 58900 | M24: 69000 | N24: 82600 | O24: 87400 | P24: 94500 | Q24: 104900 | R24: 110500 | S24: 117200 | T24: 124300 | U24: 138500 | V24: 191800 | W24: 202000 | Z24: 16 | AA24: 6800 | AB24: 18 | AC24: 28120 | AD24: L-17 | AE24: 49700
A25: 17 | B25: 28400 | C25: 28700 | D25: 29300 | E25: 30800 | F25: 33300 | G25: 34400 | H25: 36100 | I25: 42200 | J25: 46100 | K25: 54100 | L25: 60700 | M25: 71100 | N25: 85100 | O25: 90000 | P25: 97300 | Q25: 108000 | R25: 113800 | S25: 120700 | T25: 128000 | U25: 142700 | V25: 197600 | W25: 208100 | Z25: 17 | AA25: 7200 | AB25: 19 | AC25: 29840 | AD25: L-18 | AE25: 52800
A26: 18 | B26: 29300 | C26: 29600 | D26: 30200 | E26: 31700 | F26: 34300 | G26: 35400 | H26: 37200 | I26: 43500 | J26: 47500 | K26: 55700 | L26: 62500 | M26: 73200 | N26: 87700 | O26: 92700 | P26: 100200 | Q26: 111200 | R26: 117200 | S26: 124300 | T26: 131800 | U26: 147000 | V26: 203500 | Z26: 18 | AA26: 7600 | AB26: 20 | AC26: 31620 | AD26: L-19 | AE26: 56000
A27: 19 | B27: =ROUND(B26+(B26*0.03),-2) -> 30200 | C27: 30500 | D27: 31100 | E27: 32700 | F27: 35300 | G27: 36500 | H27: 38300 | I27: 44800 | J27: 48900 | K27: 57400 | L27: 64400 | M27: 75400 | N27: 90300 | O27: 95500 | P27: 103200 | Q27: 114500 | R27: 120700 | S27: 128000 | T27: 135800 | U27: 151400 | V27: GPF RATES | Z27: 19 | AA27: 8200 | AB27: 21 | AC27: 35180 | AD27: L-20 | AE27: 62300
A28: 20 | B28: 31100 | C28: 31400 | D28: 32000 | E28: 33700 | F28: 36400 | G28: 37600 | H28: 39400 | I28: 46100 | J28: 50400 | K28: 59100 | L28: 66300 | M28: 77700 | N28: 93000 | O28: 98400 | P28: 106300 | Q28: 117900 | R28: 124300 | S28: 131800 | T28: 139900 | U28: 155900 | V28: RANGE | X28: 2017-10-01 | Y28: 2018-03-01 | Z28: 20 | AA28: 8700 | AB28: 22 | AC28: 48710 | AD28: L-21 | AE28: 86200
A29: 21 | B29: 32000 | C29: 32300 | D29: 33000 | E29: 34700 | F29: 37500 | G29: 38700 | H29: 40600 | I29: 47500 | J29: 51900 | K29: 60900 | L29: 68300 | M29: 80000 | N29: 95800 | O29: 101400 | P29: 109500 | Q29: 121400 | R29: 128000 | S29: 135800 | T29: 144100 | U29: 160600 | V29: UPTO 23100 | X29: 500 | Y29: 14500 | Z29: 21 | AA29: 8900 | AB29: 23 | AC29: 51350 | AD29: L-22 | AE29: 90800
A30: 22 | B30: 33000 | C30: 33300 | D30: 34000 | E30: 35700 | F30: 38600 | G30: 39900 | H30: 41800 | I30: 48900 | J30: 53500 | K30: 62700 | L30: 70300 | M30: 82400 | N30: 98700 | O30: 104400 | P30: 112800 | Q30: 125000 | R30: 131800 | S30: 139900 | T30: 148400 | U30: 165400 | V30: 23101 TO 28500 | X30: 650 | Y30: 1625 | Z30: 22 | AA30: 9500 | AB30: 23A | AC30: 54120 | AD30: L-23 | AE30: 102100
A31: 23 | B31: 34000 | C31: 34300 | D31: 35000 | E31: 36800 | F31: 39800 | G31: 41100 | H31: 43100 | I31: 50400 | J31: 55100 | K31: 64600 | L31: 72400 | M31: 84900 | N31: 101700 | O31: 107500 | P31: 116200 | Q31: 128800 | R31: 135800 | S31: 144100 | T31: 152900 | U31: 170400 | V31: 28501 TO 38500 | X31: 1100 | Y31: 2100 | Z31: 23 | AA31: 10000 | AB31: 24 | AC31: 57820 | AD31: L-24 | AE31: 104200
A32: 24 | B32: 35000 | C32: 35300 | D32: 36100 | E32: 37900 | F32: 41000 | G32: 42300 | H32: 44400 | I32: 51900 | J32: 56800 | K32: 66500 | L32: 74600 | M32: 87400 | N32: 104800 | O32: 110700 | P32: 119700 | Q32: 132700 | R32: 139900 | S32: 148400 | T32: 157500 | U32: 175500 | V32: 38501 TO 51500 | X32: 1450 | Y32: 2850 | Z32: SI PREMIUM FROM SALARY
A33: 25 | B33: 36100 | C33: 36400 | D33: 37200 | E33: 39000 | F33: 42200 | G33: 43600 | H33: 45700 | I33: 53500 | J33: 58500 | K33: 68500 | L33: 76800 | M33: 90000 | N33: 107900 | O33: 114000 | P33: 123300 | Q33: 136700 | R33: 144100 | S33: 152900 | T33: 162200 | U33: 180800 | V33: 51501 TO 62000 | X33: 2100 | Y33: 3575 | Z33: PAY RANGE | AB33: 2018-03-01 | AC33: 2020-03-01
A34: 26 | B34: 37200 | C34: 37500 | D34: 38300 | E34: 40200 | F34: 43500 | G34: 44900 | H34: 47100 | I34: 55100 | J34: 60300 | K34: 70600 | L34: 79100 | M34: 92700 | N34: 111100 | O34: 117400 | P34: 127000 | Q34: 140800 | R34: 148400 | S34: 157500 | T34: 167100 | U34: 186200 | V34: 62001 TO 72000 | X34: 3300 | Y34: 4200 | Z34: UPTO 22000 | AB34: 500 | AC34: 800
A35: 27 | B35: 38300 | C35: 38600 | D35: 39400 | E35: 41400 | F35: 44800 | G35: 46200 | H35: 48500 | I35: 56800 | J35: 62100 | K35: 72700 | L35: 81500 | M35: 95500 | N35: 114400 | O35: 120900 | P35: 130800 | Q35: 145000 | R35: 152900 | S35: 162200 | T35: 172100 | U35: 191800 | V35: 72001 TO 80000 | X35: 4100 | Y35: 4800 | Z35: 22001 TO 28500 | AB35: 700 | AC35: 1200
A36: 28 | B36: 39400 | C36: 39800 | D36: 40600 | E36: 42600 | F36: 46100 | G36: 47600 | H36: 50000 | I36: 58500 | J36: 64000 | K36: 74900 | L36: 83900 | M36: 98400 | N36: 117800 | O36: 124500 | P36: 134700 | Q36: 149400 | R36: 157500 | S36: 167100 | T36: 177300 | U36: 197600 | V36: 80001 TO 116000 | X36: 5200 | Y36: 6150 | Z36: 28501TO 46500 | AB36: 1300 | AC36: 2200
A37: 29 | B37: 40600 | C37: 41000 | D37: 41800 | E37: 43900 | F37: 47500 | G37: 49000 | H37: 51500 | I37: 60300 | J37: 65900 | K37: =ROUND(K36+(K36*0.03),-2) -> 77100 | L37: 86400 | M37: 101400 | N37: 121300 | O37: 128200 | P37: 138700 | Q37: 153900 | R37: =ROUND(R36+(R36*0.03),-2) -> 162200 | S37: 172100 | T37: 182600 | U37: 203500 | V37: 116001 TO 16700 | X37: 5700 | Y37: 8900 | Z37: 46501 TO 72000 | AB37: 1800 | AC37: 3000
A38: 30 | B38: 41800 | C38: 42200 | D38: 43100 | E38: 45200 | F38: 48900 | G38: 50500 | H38: 53000 | I38: 62100 | J38: 67900 | K38: 79400 | L38: 89000 | M38: 104400 | N38: 124900 | O38: 132000 | P38: 142900 | Q38: 158500 | R38: 167100 | S38: 177300 | T38: 188100 | V38: ABOVE 116700 | X38: 6200 | Y38: 10500 | Z38: ABOVE 72000 | AB38: 3000 | AC38: 5000
A39: 31 | B39: 43100 | C39: 43500 | D39: 44400 | E39: 46600 | F39: 50400 | G39: 52000 | H39: 54600 | I39: 64000 | J39: 69900 | K39: 81800 | L39: 91700 | M39: 107500 | N39: 128600 | O39: 136000 | P39: 147200 | Q39: 163300 | R39: 172100 | S39: 182600 | T39: 193700 | V39: RPMF RATES | Z39: MAXIMUM | AB39: 4000 | AC39: 7000
A40: 32 | B40: 44400 | C40: 44800 | D40: 45700 | E40: 48000 | F40: 51900 | G40: 53600 | H40: 56200 | I40: 65900 | J40: 72000 | K40: 84300 | L40: 94500 | M40: 110700 | N40: 132500 | O40: 140100 | P40: 151600 | Q40: 168200 | R40: 177300 | S40: 188100 | T40: 199500 | V40: PAY RANGE | X40: 2017-10-01 | Y40: 2017-11-01 | Z40: 2018-04-01 | AA40: 2018-10-30 | AB40: 2019-04-01 | AC40: 2020-04-01
A41: 33 | B41: 45700 | C41: 46100 | D41: 47100 | E41: 49400 | F41: 53500 | G41: 55200 | H41: 57900 | I41: 67900 | J41: 74200 | K41: 86800 | L41: 97300 | M41: 114000 | N41: 136500 | O41: 144300 | P41: 156100 | Q41: 173200 | R41: 182600 | S41: 193700 | V41: UP TO 18000 | X41: 205 | Y41: 210 | Z41: 219 | AA41: 228 | AB41: 242 | AC41: 265
A42: 34 | B42: 47100 | C42: 47500 | D42: 48500 | E42: 50900 | F42: 55100 | G42: 56900 | H42: 59600 | I42: 69900 | J42: 76400 | K42: 89400 | L42: 100200 | M42: 117400 | N42: 140600 | O42: 148600 | P42: 160800 | Q42: 178400 | R42: 188100 | S42: 199500 | V42: 18001 TO 33500 | X42: 341 | Y42: 349 | Z42: 364 | AA42: 379 | AB42: 402 | AC42: 440
A43: 35 | B43: =ROUND(B42+(B42*0.03),-2) -> 48500 | C43: 48900 | D43: 50000 | E43: 52400 | F43: 56800 | G43: 58600 | H43: 61400 | I43: 72000 | J43: 78700 | K43: 92100 | L43: 103200 | M43: 120900 | N43: 144800 | O43: 153100 | P43: 165600 | Q43: 183800 | R43: 193700 | V43: 33501 TO 54000 | X43: 511 | Y43: 522 | Z43: 545 | AA43: 568 | AB43: 602 | AC43: 658
A44: 36 | B44: 50000 | C44: 50400 | D44: 51500 | E44: 54000 | F44: 58500 | G44: 60400 | H44: 63200 | I44: 74200 | J44: 81100 | K44: 94900 | L44: 106300 | M44: 124500 | N44: 149100 | O44: 157700 | P44: 170600 | Q44: 189300 | R44: 199500 | V44: 54001 & ABOVE | X44: 680 | Y44: 695 | Z44: 725 | AA44: 755 | AB44: 800 | AC44: 875
A45: 37 | B45: 51500 | C45: 51900 | D45: 53000 | E45: 55600 | F45: 60300 | G45: 62200 | H45: 65100 | I45: 76400 | J45: 83500 | K45: 97700 | L45: 109500 | M45: 128200 | N45: 153600 | O45: 162400 | P45: 175700 | Q45: 195000 | V45: D.A. RATES
A46: 38 | B46: 53000 | C46: 53500 | D46: 54600 | E46: 57300 | F46: 62100 | G46: 64100 | H46: 67100 | I46: 78700 | J46: 86000 | K46: 100600 | L46: 112800 | M46: 132000 | N46: 158200 | O46: 167300 | P46: 181000 | Q46: VIJAY KUMAR PRAJAPAT GSSS ALNIYAWAS GMAIL ID-gupskalani@gmail.com | V46: FROM | W46: 2017-01-01 | X46: 2017-07-01 | Y46: 2018-01-01 | Z46: 2018-07-01 | AA46: 2019-01-01 | AB46: 2019-07-01 | AC46: 2021-07-01 | AD46: 2020-07-01 | AE46: 2021-01-01
A47: 39 | B47: 54600 | C47: 55100 | D47: 56200 | E47: 59000 | F47: 64000 | G47: 66000 | H47: 69100 | I47: 81100 | J47: 88600 | K47: 103600 | L47: 116200 | M47: 136000 | N47: 162900 | O47: 172300 | P47: 186400 | V47: RATE | W47: 4.% | X47: 5.% | Y47: 7.% | Z47: 9.% | AA47: 12.% | AB47: 17.% | AC47: 28.%
A48: 40 | B48: =ROUND(B47+(B47*0.03),-2) -> 56200 | C48: 56800 | D48: 57900 | E48: 60800 | F48: 65900 | G48: 68000 | H48: 71200 | I48: 83500 | J48: 91300 | K48: 106700 | L48: 119700 | M48: 140100 | N48: 167800 | O48: 177500 | P48: 192000 | V48: GPF | W48: 2017-06-01 | X48: 2017-09-01 | Y48: 2018-02-01 | Z48: 2018-08-01 | AA48: 2019-02-01 | AB48: 2020-02-01

Sheet TAX CALCULATION
A1: ENTER DATA IN YELLOW TAB | D1: TAX CACULATION | J1: TAX SLAB ( YEAR 2021-22)
A2: ANNUAL GROSS SALARY | B2: ='GA55'!K32 -> 906301 | D2: OLD TAX REGIME | F2: NEW TAX REGIME ( OPTIONAL) | J2: SLAB | K2: OPTIONAL | L2: EXITING
A3: STANDARD DEDUCTION | B3: 50000 | D3: SLAB AMOUNT (OLD) | E3: TAX | F3: SLAB AMOUNT (NEW) | G3: TAX | K3: NEW | L3: OLD
A4: HRA | B4: 0 | D4: =IF($B$13>250000,250000,$B$13) -> 250000 | E4: =D4*L4 -> 0 | F4: =IF(B14>250000,250000,D13) -> 250000 | G4: =F4*K4 -> 0 | J4: 0-250000 | K4: 0% | L4: 0%
A5: PT AND ENTERTAINMENT ALLOWANCE | B5: 544 | D5: =IF($B$13>500000,250000,$B$13-D4) -> 250000 | E5: =IF(B13<=500000,0,(D5*L5)) -> 12500 | F5: =IF($B$14>500000,250000,($B$14-F4)) -> 250000 | G5: =IF(B14<=500000,0,F5*K5) -> 12500 | J5: 250001-500000 | K5: 5% | L5: 5%
A6: NPS | B6: ='GA55'!L32 -> 84189 | D6: =IF($B$13>750000,250000,$B$13-D5-D4) -> 121568 | E6: =ROUND(D6*L6,0) -> 24314 | F6: =IF($B$14>750000,250000,($B$14-F5-F4)) -> 250000 | G6: =ROUND(F6*K6,0) -> 25000 | J6: 500001-750000 | K6: 10% | L6: 20%
A7: HOM E LOAN ITEREST | D7: =IF($B$13>1000000,250000,$B$13-D6-D5-D4) -> 0 | E7: =ROUND(D7*L7,0) -> 0 | F7: =IF($B$14>1000000,250000,($B$14-F5-F6-F4)) -> 72112 | G7: =ROUND(F7*K7,0) -> 10817 | J7: 750001-1000000 | K7: 15% | L7: 20%
A8: DEDUCTION OG US 80C | B8: 150000 | D8: =IF($B$13>1250000,250000,$B$13-D7-D6-D5-D4) -> 0 | E8: 0 | F8: =IF($B$14>1250000,250000,($B$14-F6-F7-F5-F4)) -> 0 | G8: 0 | J8: 1000001-1250000 | K8: 20% | L8: 30%
A9: HEALTH INSURANCE US 80D | D9: =IF($B$13>1500000,250000,$B$13-D8-D7-D6-D5-D4) -> 0 | E9: 0 | F9: =IF($B$14>1250000,250000,($B$14-F7-F8-F6-F5-F4)) -> 0 | G9: 0 | J9: 1250001-1500000 | K9: 25% | L9: 30%
A10: SAVING BANK INTEREST | B10: 0 | D10: =IF($B$13>1500000,$B$13-1500000,0) -> 0 | E10: 0 | F10: =IF($B$14>1500000,$B$14-1500000,0) -> 0 | G10: 0 | J10: 1500000 & ABOVE | K10: 30% | L10: 30%
A11: 80U | B11: 0
A12: TOAL EXEMPTION & DEDUCTION | B12: =B3+B4+B5+B6+B7+B8+B9+B10+B11 -> 284733 | D12: TOTAL | E12: =ROUND(SUM(E4:E11),0) -> 36814 | G12: =SUM(G4:G11) -> 48317
A13: TEXABLE INCOME for exiting slab | B13: =B2-B12 -> 621568 | D13: S.& EDU.TAX | E13: =ROUND(E12*4/100,0) -> 1473 | F13: =-D18 -> 0 | G13: =ROUND(G12*4/100,0) -> 1933
A14: In new income tax nps exemption | B14: =B2-B6 -> 822112 | D14: =SUM(D4:D11) -> 621568 | E14: =ROUND(E12+E13,0) -> 38287 | F14: =SUM(F4:F11) -> 822112 | G14: =ROUND((G12+G13),0) -> 50250
A15: पीले CELL में कटौती लिखे ध्यान रहे एक बार NEW TAX REGIME लेने पर आगामी वर्षों में यही रहेगा | D15: TOTAL TAX | E15: =ROUND(E14,0) -> 38287 | F15: TOTAL TAX | G15: =ROUND(G14,0) -> 50250
D16: WHICH IS BETTER FOR YOU ?
D17: =IF(G15>E15,"OLD IS BETTER","NEW IS BETTER") -> OLD IS BETTER | E17: FOR | F17: ='GA55'!D9 -> VIJAY KUMAR PRAJAPAT
D22: =B2 -> 906301 | E22: =B13-250000 -> 371568 | H22: =B13 -> 621568 | I22: 250000 | J22: =H22-I22 -> 371568 | K22: =B2 -> 906301 | L22: 250000 | M22: =K22-L22 -> 656301
D23: =SUM(B3:B7) -> 134733 | G23: =IF(E5>=12500,"0",IF(E5>=12500,(E5-12500))) -> 0 | H23: =J22 -> 371568 | I23: 250000 | J23: =H23-I23 -> 121568 | K23: =M22 -> 656301 | L23: 250000 | M23: =K23-L23 -> 406301
D24: =D22-D23 -> 771568 | K24: =M23 -> 406301 | L24: 250000 | M24: 156301
D25: =SUM(B8:B11) -> 150000 | L25: 250000 | M25: -250000
D26: =D24-D25 -> 621568 | E26: =B13-250000 -> 371568
D28: 0

Sheet OLD TAX REGIME
B1: ='GA55'!B7 -> OFFICE GOVT.SR.SEC.SCHOOL ALNIYAWAS DISTT.-NAGAUR
B2: आयकर गणना प्रपत्र 2021-22 ( कर निर्धारण वर्ष 2022-23) | K2: OLD TAX REGIME
B3: 1 | D3: नाम कर्मचारी | E3: ='GA55'!D9 -> VIJAY KUMAR PRAJAPAT | H3: पद | I3: ='GA55'!J9 -> lecturer | K3: PAN NO | L3: ='GA55'!O9 -> QYPP0000J
D4: Bank Ac.No.-- | F4: ='GA55'!W10 -> 61000000000 | I4: Name Of Bank : | K4: ='GA55'!M10 -> STATE BANK OF INDIA RIYAN BARI
B5: 2 | D5: कुल वेतन (कर योग्य सुविधाओ सहित NPS सहित ) | L5: Rs. | M5: ='GA55'!AU28 -> 990490.00
B6: 3 | D6: ग्रह किराया धारा 10(13-I) के अंतर्गतएंव धारा 10(14) के अंतर्गतअन्यभत्ते जो करमुक्त हो | L6: Rs. | M6: =IF('GA55'!W6="YES",'GA55'!F32,0) -> 57639.00
B7: 4 | D7: शेष (2-3) -WITH EXEMPT STANDARD DEDUCTION MAX. 50000 | L7: Rs. | M7: =M5-M6-50000 -> 882851.00
B8: 5 | D8: (i) मनोरंजन भत्ता धारा 16(i) के अंतर्गत ( अधिकतम सीमा रू 5000 ) | K8: 0.00 | L8: Rs.
D9: (ii) व्यवसाय कर धारा 16(ii) के अंतर्गत ( अधिकतम सीमा रू 5000 ) | K9: 0.00 | L9: Rs.
B10: 6 | D10: शेष (4-5) | L10: Rs. | M10: =M7-K8-K9 -> 882851.00
B11: 7 | D11: (अ) ग्रह सम्पति से आय (1) स्वंय के उपयोग में - शून्य | J11: (2) प्राप्त किराया रू | L11: Rs.
D12: (ब) घटाए | F12: किराये का 30% | H12: ग्रह ऋण पर ब्याज | J12: गृहकर | K12: योग 7 (ब) | L12: Rs.
F13: 0.00 | H13: 0.00 | J13: 0.00 | K13: =F13+H13+I13+J13+G13 -> 0.00 | L13: Rs.
D14: कुल सकल आय | L14: Rs. | M14: =M10-K13 -> 882851.00
B15: 8 | C15: (A) | D15: Chapter VI A Deductions( max 150000) | L15: Rs.
C16: (i) | D16: GPF/GPF04 | F16: =IF('GA55'!W2="YES",'GA55'!T32,'GA55'!M32) -> 9208.00 | G16: (x) | H16: FIXED DEPOSIT 5 YEAR | K16: 0.00 | L16: Rs.
C17: (ii) | D17: SI | F17: ='GA55'!P32 -> 84000.00 | G17: (xi) | H17: TUSION FEES | K17: 0.00 | L17: Rs.
C18: (iii) | D18: LIC ( from salary) | F18: ='GA55'!R32 -> 12840.00 | G18: (xii) | H18: NPS CONTRIBUTION | K18: =M26-M27 -> 84189.00 | L18: Rs.
C19: (iv) | D19: LIC ( by Self) | F19: 26000.00 | G19: (xiii) | H19: PENSION PLAN (US 80CCC) | K19: 0.00 | L19: Rs.
C20: (v) | D20: PPF | F20: 0.00 | G20: (xiv) | H20: DEFFERED ANNUTY | K20: 0.00 | L20: Rs.
C21: (vi) | D21: PLI | F21: 0.00 | G21: (xv) | H21: ULIP | K21: 0.00 | L21: Rs.
C22: (vii) | D22: NSC | F22: 0.00 | G22: (xvi) | H22: GIS | K22: ='GA55'!S32 -> 220.00 | L22: Rs.
C23: (viii) | D23: HBA Premium | F23: 0.00 | G23: (xvii) | H23: सुकन्या समृद्धि योजना | K23: 0.00 | L23: Rs.
C24: (ix) | D24: NSS | F24: 0.00 | G24: Total( I to xvii) | K24: =F16+F17+F18+F19+F21+F20+F22+F23+F24+K16+K17+K18+K19+K20+K21+K22+K23 -> 216457.00 | L24: Rs.
C25: अधिकतम कटोती की राशि 1.50 लाख रूपये तक | M25: =IF(K24<=150000,K24,150000) -> 150000.00
C26: धारा 80CCD(2) नियोक्ता द्वारा वेतन अंशदान की राशि ( अधिकतम वेतन का 10% ) पृथक से छूट | L26: Rs. | M26: ='GA55'!L32 -> 84189.00
C27: धारा 80CCD(1B) नियोक्ता द्वारा नवीन पेंशन योजना में अतिरिक्त अंशदान की राशि ( अधिकतम 50000 ) पृथक से छूट | L27: Rs.
C28: योग 8 (अ + ब + स ) | L28: Rs. | M28: =M25+M26+M27 -> 234189.00
B29: अन्य कटौतियां (VI A)-US80D,US80DD,US80DDB,US80E,US80G,US80GG,80U,80TTA etc.
B30: 9 | C30: 1 | D30: धारा 80D - चिकित्सा बीमा प्रीमियम ( सामान्य 25000, वरिष्ठ नागरिक 50000 ) | E30: /kkjk 80D - fpfdRlk chek izhfe;e ¼lkekU; 25000]ofj"B ukxfjd 50000 | F30: /kkjk 80D - fpfdRlk chek izhfe;e ¼lkekU; 25000]ofj"B ukxfjd 50000 | G30: /kkjk 80D - fpfdRlk chek izhfe;e ¼lkekU; 25000]ofj"B ukxfjd 50000 | H30: /kkjk 80D - fpfdRlk chek izhfe;e ¼lkekU; 25000]ofj"B ukxfjd 50000 | I30: /kkjk 80D - fpfdRlk chek izhfe;e ¼lkekU; 25000]ofj"B ukxfjd 50000 | J30: /kkjk 80D - fpfdRlk chek izhfe;e ¼lkekU; 25000]ofj"B ukxfjd 50000 | K30: /kkjk 80D - fpfdRlk chek izhfe;e ¼lkekU; 25000]ofj"B ukxfjd 50000 | L30: Rs. | M30: 0.00
C31: 2 | D31: धारा 80DD - विशेष योग्यजन आश्रितों के चिकित्सा उपचार ( अधिकतम 75000), 80% विशेष योग्यजन 125000 | E31: /kkjk 80DD - fo'ks"k ;ksX;tu vkfJrksa ds fpfdRlk mipkj ¼vf/kdre 75000]80% fo'ks"k ;ksX;tu 125000 | F31: /kkjk 80DD - fo'ks"k ;ksX;tu vkfJrksa ds fpfdRlk mipkj ¼vf/kdre 75000]80% fo'ks"k ;ksX;tu 125000 | G31: /kkjk 80DD - fo'ks"k ;ksX;tu vkfJrksa ds fpfdRlk mipkj ¼vf/kdre 75000]80% fo'ks"k ;ksX;tu 125000 | H31: /kkjk 80DD - fo'ks"k ;ksX;tu vkfJrksa ds fpfdRlk mipkj ¼vf/kdre 75000]80% fo'ks"k ;ksX;tu 125000 | I31: /kkjk 80DD - fo'ks"k ;ksX;tu vkfJrksa ds fpfdRlk mipkj ¼vf/kdre 75000]80% fo'ks"k ;ksX;tu 125000 | J31: /kkjk 80DD - fo'ks"k ;ksX;tu vkfJrksa ds fpfdRlk mipkj ¼vf/kdre 75000]80% fo'ks"k ;ksX;tu 125000 | K31: /kkjk 80DD - fo'ks"k ;ksX;tu vkfJrksa ds fpfdRlk mipkj ¼vf/kdre 75000]80% fo'ks"k ;ksX;tu 125000 | L31: Rs. | M31: 0.00
C32: 3 | D32: धारा 80DDB -विशिष्ठ रोगों के चिकित्सा उपचार हेतु कटौती ( सामान्य 40000, वरिष्ठ नागरिक 100000 रुपये ) | E32: /kkjk 80DDB - fof'k"V jkxks ds fpfdRlk mipkj gsrq dVkSrh ¼lkekU; 40000]ofj"B ukxfjd 100000 | F32: /kkjk 80DDB - fof'k"V jkxks ds fpfdRlk mipkj gsrq dVkSrh ¼lkekU; 40000]ofj"B ukxfjd 100000 | G32: /kkjk 80DDB - fof'k"V jkxks ds fpfdRlk mipkj gsrq dVkSrh ¼lkekU; 40000]ofj"B ukxfjd 100000 | H32: /kkjk 80DDB - fof'k"V jkxks ds fpfdRlk mipkj gsrq dVkSrh ¼lkekU; 40000]ofj"B ukxfjd 100000 | I32: /kkjk 80DDB - fof'k"V jkxks ds fpfdRlk mipkj gsrq dVkSrh ¼lkekU; 40000]ofj"B ukxfjd 100000 | J32: /kkjk 80DDB - fof'k"V jkxks ds fpfdRlk mipkj gsrq dVkSrh ¼lkekU; 40000]ofj"B ukxfjd 100000 | K32: /kkjk 80DDB - fof'k"V jkxks ds fpfdRlk mipkj gsrq dVkSrh ¼lkekU; 40000]ofj"B ukxfjd 100000 | L32: Rs. | M32: 0.00
C33: 4 | D33: धारा 80E - उच्च शिक्षा हेतु ऋण पर ब्याज | E33: /kkjk 80E - mPp f'k{kk gsrq _.k ij C;kt | F33: /kkjk 80E - mPp f'k{kk gsrq _.k ij C;kt | G33: /kkjk 80E - mPp f'k{kk gsrq _.k ij C;kt | H33: /kkjk 80E - mPp f'k{kk gsrq _.k ij C;kt | I33: /kkjk 80E - mPp f'k{kk gsrq _.k ij C;kt | J33: /kkjk 80E - mPp f'k{kk gsrq _.k ij C;kt | K33: /kkjk 80E - mPp f'k{kk gsrq _.k ij C;kt | L33: Rs. | M33: 0.00
C34: 5 | D34: धारा 80G - धर्मार्थ संस्थाओं को दिए गए दान ( क श्रेणी 100% एंव ख श्रेणी 50 % ) | L34: Rs. | M34: 0.00
C35: 6 | D35: धारा 80U - स्थाई शारीरिक विशेष योग्यजन ( अधिकतम 75000, 80 % विशेष योग्यजन 125000 रूपये की छूट) | E35: /kkjk 80U - LFkkbZ 'kkjhfjd fo'ks"k ;ksX;tu ¼ vf/kdre 75000]80% fo'ks"k ;ksX;tu 125000) | F35: /kkjk 80U - LFkkbZ 'kkjhfjd fo'ks"k ;ksX;tu ¼ vf/kdre 75000]80% fo'ks"k ;ksX;tu 125000) | G35: /kkjk 80U - LFkkbZ 'kkjhfjd fo'ks"k ;ksX;tu ¼ vf/kdre 75000]80% fo'ks"k ;ksX;tu 125000) | H35: /kkjk 80U - LFkkbZ 'kkjhfjd fo'ks"k ;ksX;tu ¼ vf/kdre 75000]80% fo'ks"k ;ksX;tu 125000) | I35: /kkjk 80U - LFkkbZ 'kkjhfjd fo'ks"k ;ksX;tu ¼ vf/kdre 75000]80% fo'ks"k ;ksX;tu 125000) | J35: /kkjk 80U - LFkkbZ 'kkjhfjd fo'ks"k ;ksX;tu ¼ vf/kdre 75000]80% fo'ks"k ;ksX;tu 125000) | K35: /kkjk 80U - LFkkbZ 'kkjhfjd fo'ks"k ;ksX;tu ¼ vf/kdre 75000]80% fo'ks"k ;ksX;tu 125000) | L35: Rs. | M35: 0.00
C36: 7 | D36: धारा 80GGA - अनुमोदित वैज्ञानिक,सामाजिक,ग्रामीण विकास हेतु दिया गया दान | E36: /kkjk 80GGA - vuqekfnr oSKkfud]lkekftd]xzkeh.k fodkl gsrq fn;k x;k nku | F36: /kkjk 80GGA - vuqekfnr oSKkfud]lkekftd]xzkeh.k fodkl gsrq fn;k x;k nku | G36: /kkjk 80GGA - vuqekfnr oSKkfud]lkekftd]xzkeh.k fodkl gsrq fn;k x;k nku | H36: /kkjk 80GGA - vuqekfnr oSKkfud]lkekftd]xzkeh.k fodkl gsrq fn;k x;k nku | I36: /kkjk 80GGA - vuqekfnr oSKkfud]lkekftd]xzkeh.k fodkl gsrq fn;k x;k nku | J36: /kkjk 80GGA - vuqekfnr oSKkfud]lkekftd]xzkeh.k fodkl gsrq fn;k x;k nku | K36: /kkjk 80GGA - vuqekfnr oSKkfud]lkekftd]xzkeh.k fodkl gsrq fn;k x;k nku | L36: Rs. | M36: 0.00
C37: 8 | D37: धारा 80 TTA - बचत खाते के ब्याज पर छूट ( अधिकतम 10000 रूपये ) | E37: /kkjk 80GGA - vuqekfnr oSKkfud]lkekftd]xzkeh.k fodkl gsrq fn;k x;k nku | F37: /kkjk 80GGA - vuqekfnr oSKkfud]lkekftd]xzkeh.k fodkl gsrq fn;k x;k nku | G37: /kkjk 80GGA - vuqekfnr oSKkfud]lkekftd]xzkeh.k fodkl gsrq fn;k x;k nku | H37: /kkjk 80GGA - vuqekfnr oSKkfud]lkekftd]xzkeh.k fodkl gsrq fn;k x;k nku | I37: /kkjk 80GGA - vuqekfnr oSKkfud]lkekftd]xzkeh.k fodkl gsrq fn;k x;k nku | J37: /kkjk 80GGA - vuqekfnr oSKkfud]lkekftd]xzkeh.k fodkl gsrq fn;k x;k nku | K37: /kkjk 80GGA - vuqekfnr oSKkfud]lkekftd]xzkeh.k fodkl gsrq fn;k x;k nku | L37: Rs. | M37: 0.00
B38: कुल योग ( 1 से 8 तक ) | L38: Rs. | M38: =M30+M31+M32+M33+M34+M35+M36+M37 -> 0.00
B39: 10 | C39: कुल कटौती | L39: Rs. | M39: =M28+M38 -> 234189.00
B40: 11 | C40: कर योग्य आय | L40: Rs. | M40: =M14-M39 -> 648662.00
B41: 12 | C41: कुल आय की राशि का 10 के गुणांक में गणना | L41: Rs. | M41: =ROUND(M40,-1) -> 648660.00
B42: 13 | C42: सामान्य आयकर स्लैब | I42: आयकर योग्य राशि
C43: 0 - 2,50,000 | D43: 0-250000 | E43: 0-250000 | F43: 0-250000 | G43: 0-250000 | H43: 0% | I43: =IF($M$41>250000,250000,$M$41) -> 250000 | L43: Rs. | M43: =I43*H43 -> 0.00
C44: 2,50,001 - 5,00,000 | D44: 250001-500000 | E44: 250001-500000 | F44: 250001-500000 | G44: 250001-500000 | H44: 5% | I44: =IF($M$41>500000,250000,$M$41-I43) -> 250000 | L44: Rs. | M44: =I44*H44 -> 12500.00
C45: 5,00,001 - 10,00,000 | D45: 500001-750000 | E45: 500001-750000 | F45: 500001-750000 | G45: 500001-750000 | H45: 20% | I45: =IF($M$41>1000000,500000,$M$41-I43-I44) -> 148660 | L45: Rs. | M45: =I45*H45 -> 29732.00
C46: 10,00,001 - 12,50,000 | D46: 1000001-1250000 | E46: 1000001-1250000 | F46: 1000001-1250000 | G46: 1000001-1250000 | H46: 30% | I46: =IF($M$41>1250000,250000,$M$41-I45-I44-I43) -> 0 | L46: Rs. | M46: 0.00
C47: 12,50,001 - 15,00,000 | D47: 1250001-1500000 | E47: 1250001-1500000 | F47: 1250001-1500000 | G47: 1250001-1500000 | H47: 30% | I47: =IF($M$41>1500000,250000,$M$41-I46-I45-I44-I43) -> 0 | L47: Rs. | M47: 0.00
C48: Above 15,00,000 | D48: 1250001-1500000 | E48: 1250001-1500000 | F48: 1250001-1500000 | G48: 1250001-1500000 | H48: 30% | I48: =IF($M$41<1500000,0,$M$41-I47-I46-I45-I43-I44) -> 0 | L48: Rs. | M48: 0.00
B49: 14 | C49: योग आयकर | I49: =I43+I44+I45+I46+I47+I48 -> 648660.00 | L49: Rs. | M49: =M43+M44+M45+M46+M47+M48 -> 42232.00
B50: 15 | C50: धारा 87 (A) - ( 2.50 लाख से 5.00 लाख तक की कर योग्य आय पर अधिकतम छूट 12500 रूपये | L50: Rs. | M50: =IF(M41<=500000,M44,0) -> 0.00
B51: छूट के पश्चात् कुल आयकर | L51: Rs. | M51: =M49-M50 -> 42232.00
B52: शिक्षा उपकर 2% एंव उच्च शिक्षा के लिए अधिभार 2% TOTAL 4% | L52: Rs. | M52: =ROUND(M51*4%,0) -> 1689.00
B53: कुल आयकर | L53: Rs. | M53: =M51+M52 -> 43921.00
B54: राहत धारा 89 के तहत छूट | L54: Rs. | M54: 0.00
B55: कुल शेष आयकर | L55: Rs. | M55: =M53-M54 -> 43921.00
B56: विभिन्न स्रोतों से हुई मासिक आयकर कटौती
C57: ='GA55'!C13 -> 2021-03-01 | F57: ='GA55'!U13 -> 0.00 | G57: ='GA55'!C19 -> 2021-09-01 | J57: ='GA55'!U19 -> 0.00 | L57: Rs. | M57: अन्य एरियर से कटौती
C58: ='GA55'!C14 -> 2021-04-01 | F58: ='GA55'!U14 -> 0.00 | G58: ='GA55'!C20 -> 2021-10-01 | J58: ='GA55'!U20 -> 0.00 | L58: Rs.
C59: ='GA55'!C15 -> 2021-05-01 | F59: ='GA55'!U15 -> 0.00 | G59: ='GA55'!C21 -> 2021-11-01 | J59: ='GA55'!U21 -> 0.00 | L59: Rs.
C60: ='GA55'!C16 -> 2021-06-01 | F60: ='GA55'!U16 -> 0.00 | G60: ='GA55'!C22 -> 2021-12-01 | J60: ='GA55'!U22 -> 0.00 | L60: Rs. | M60: =SUM('GA55'!U25:U31) -> 0.00
C61: ='GA55'!C17 -> 2021-07-01 | F61: ='GA55'!U17 -> 0.00 | G61: ='GA55'!C23 -> 2022-01-01 | J61: ='GA55'!U23 -> 0.00 | L61: Rs.
C62: ='GA55'!C18 -> 2021-08-01 | F62: ='GA55'!U18 -> 0.00 | G62: ='GA55'!C24 -> 2022-02-01 | J62: ='GA55'!U24 -> 0.00 | L62: Rs.
C63: कुल कटौती का योग | L63: Rs. | M63: =F57+F58+F59+F60+F61+F62+J57+J58+J59+J60+J61+J62+M60 -> 0.00
C64: Income tax Refundable | L64: Rs. | M64: =M63-M55 -> -43921.00
K67: हस्ताक्षर कर्मचारी/ अधिकारी

Sheet NEW TAX REGIME
B1: ='GA55'!B7 -> OFFICE GOVT.SR.SEC.SCHOOL ALNIYAWAS DISTT.-NAGAUR
B2: आयकर गणना प्रपत्र 2021-22 ( कर निर्धारण वर्ष 2022-23) | K2: NEW TAX REGIME
B3: 1 | D3: नाम कर्मचारी | E3: ='GA55'!D9 -> VIJAY KUMAR PRAJAPAT | H3: पद | I3: ='GA55'!J9 -> lecturer | K3: PAN NO | L3: ='GA55'!O9 -> QYPP0000J
D4: Bank Ac.No.-- | F4: ='GA55'!W10 -> 61000000000 | I4: Name Of Bank : | K4: ='GA55'!M10 -> STATE BANK OF INDIA RIYAN BARI
B5: 2 | D5: कुल वेतन (कर योग्य सुविधाओ सहित NPS सहित ) | L5: Rs. | M5: ='GA55'!AU28 -> 990490.00
B6: 3 | D6: ग्रह किराया धारा 10(13-I) के अंतर्गतएंव धारा 10(14) के अंतर्गतअन्यभत्ते जो करमुक्त हो | L6: Rs. | M6: 0.00
B7: 4 | D7: शेष (2-3) -WITH EXEMPT STANDARD DEDUCTION MAX. 50000 | L7: Rs. | M7: =M5-M6-50000 -> 940490.00
B8: 5 | D8: (i) मनोरंजन भत्ता धारा 16(i) के अंतर्गत ( अधिकतम सीमा रू 5000 ) | K8: 0.00 | L8: Rs.
D9: (ii) व्यवसाय कर धारा 16(ii) के अंतर्गत ( अधिकतम सीमा रू 5000 ) | K9: 0.00 | L9: Rs.
B10: 6 | D10: शेष (4-5) | L10: Rs. | M10: =M7-K8-K9 -> 940490.00
B11: 7 | D11: (अ) ग्रह सम्पति से आय (1) स्वंय के उपयोग में - शून्य | J11: (2) प्राप्त किराया रू | L11: Rs.
D12: (ब) घटाए | F12: किराये का 30% | H12: ग्रह ऋण पर ब्याज | J12: गृहकर | K12: योग 7 (ब) | L12: Rs.
F13: 0.00 | H13: 0.00 | J13: 0.00 | K13: =F13+H13+I13+J13+G13 -> 0.00 | L13: Rs.
D14: कुल सकल आय | L14: Rs. | M14: =M10-K13 -> 940490.00
B15: 8 | C15: (A) | D15: Chapter VI A Deductions( max 150000) | L15: Rs.
C16: (i) | D16: GPF | F16: ='GA55'!M32 -> 0.00 | G16: (x) | H16: FIXED DEPOSIT 5 YEAR | K16: 0.00 | L16: Rs.
C17: (ii) | D17: SI | F17: 0.00 | G17: (xi) | H17: TUSION FEES | K17: 0.00 | L17: Rs.
C18: (iii) | D18: LIC ( from salary) | F18: 0.00 | G18: (xii) | H18: NPS CONTRIBUTION | K18: 0.00 | L18: Rs.
C19: (iv) | D19: LIC ( by Self) | F19: 0.00 | G19: (xiii) | H19: PENSION PLAN (US 80CCC) | K19: 540.00 | L19: Rs.
C20: (v) | D20: PPF | F20: 0.00 | G20: (xiv) | H20: DEFFERED ANNUTY | K20: 0.00 | L20: Rs.
C21: (vi) | D21: PLI | F21: 0.00 | G21: (xv) | H21: ULIP | K21: 0.00 | L21: Rs.
C22: (vii) | D22: NSC | F22: 0.00 | G22: (xvi) | H22: GIS | K22: 0.00 | L22: Rs.
C23: (viii) | D23: HBA Premium | F23: 0.00 | G23: (xvii) | H23: सुकन्या समृद्धि योजना | K23: 0.00 | L23: Rs.
C24: (ix) | D24: NSS | F24: 0.00 | G24: Total( I to xvii) | K24: 0.00 | L24: Rs.
C25: अधिकतम कटोती की राशि 1.50 लाख रूपये तक | M25: =IF(K24<=150000,K24,150000) -> 0.00
C26: धारा 80CCD(2) नियोक्ता द्वारा वेतन अंशदान की राशि ( अधिकतम वेतन का 10% ) पृथक से छूट | L26: Rs. | M26: =K18 -> 0.00
C27: धारा 80CCD(1B) नियोक्ता द्वारा नवीन पेंशन योजना में अतिरिक्त अंशदान की राशि ( अधिकतम 50000 ) पृथक से छूट | L27: Rs. | M27: =IF(K26<=150000,K26,150000) -> 0.00
C28: योग 8 (अ + ब + स ) | L28: Rs. | M28: =M25+M26+M27 -> 0.00
B29: अन्य कटौतियां (VI A)-US80D,US80DD,US80DDB,US80E,US80G,US80GG,80U,80TTA etc.
B30: 9 | C30: 1 | D30: धारा 80D - चिकित्सा बीमा प्रीमियम ( सामान्य 25000, वरिष्ठ नागरिक 50000 ) | E30: /kkjk 80D - fpfdRlk chek izhfe;e ¼lkekU; 25000]ofj"B ukxfjd 50000 | F30: /kkjk 80D - fpfdRlk chek izhfe;e ¼lkekU; 25000]ofj"B ukxfjd 50000 | G30: /kkjk 80D - fpfdRlk chek izhfe;e ¼lkekU; 25000]ofj"B ukxfjd 50000 | H30: /kkjk 80D - fpfdRlk chek izhfe;e ¼lkekU; 25000]ofj"B ukxfjd 50000 | I30: /kkjk 80D - fpfdRlk chek izhfe;e ¼lkekU; 25000]ofj"B ukxfjd 50000 | J30: /kkjk 80D - fpfdRlk chek izhfe;e ¼lkekU; 25000]ofj"B ukxfjd 50000 | K30: /kkjk 80D - fpfdRlk chek izhfe;e ¼lkekU; 25000]ofj"B ukxfjd 50000 | L30: Rs. | M30: 0.00
C31: 2 | D31: धारा 80DD - विशेष योग्यजन आश्रितों के चिकित्सा उपचार ( अधिकतम 75000), 80% विशेष योग्यजन 125000 | E31: /kkjk 80DD - fo'ks"k ;ksX;tu vkfJrksa ds fpfdRlk mipkj ¼vf/kdre 75000]80% fo'ks"k ;ksX;tu 125000 | F31: /kkjk 80DD - fo'ks"k ;ksX;tu vkfJrksa ds fpfdRlk mipkj ¼vf/kdre 75000]80% fo'ks"k ;ksX;tu 125000 | G31: /kkjk 80DD - fo'ks"k ;ksX;tu vkfJrksa ds fpfdRlk mipkj ¼vf/kdre 75000]80% fo'ks"k ;ksX;tu 125000 | H31: /kkjk 80DD - fo'ks"k ;ksX;tu vkfJrksa ds fpfdRlk mipkj ¼vf/kdre 75000]80% fo'ks"k ;ksX;tu 125000 | I31: /kkjk 80DD - fo'ks"k ;ksX;tu vkfJrksa ds fpfdRlk mipkj ¼vf/kdre 75000]80% fo'ks"k ;ksX;tu 125000 | J31: /kkjk 80DD - fo'ks"k ;ksX;tu vkfJrksa ds fpfdRlk mipkj ¼vf/kdre 75000]80% fo'ks"k ;ksX;tu 125000 | K31: /kkjk 80DD - fo'ks"k ;ksX;tu vkfJrksa ds fpfdRlk mipkj ¼vf/kdre 75000]80% fo'ks"k ;ksX;tu 125000 | L31: Rs. | M31: 0.00
C32: 3 | D32: धारा 80DDB -विशिष्ठ रोगों के चिकित्सा उपचार हेतु कटौती ( सामान्य 40000, वरिष्ठ नागरिक 100000 रुपये ) | E32: /kkjk 80DDB - fof'k"V jkxks ds fpfdRlk mipkj gsrq dVkSrh ¼lkekU; 40000]ofj"B ukxfjd 100000 | F32: /kkjk 80DDB - fof'k"V jkxks ds fpfdRlk mipkj gsrq dVkSrh ¼lkekU; 40000]ofj"B ukxfjd 100000 | G32: /kkjk 80DDB - fof'k"V jkxks ds fpfdRlk mipkj gsrq dVkSrh ¼lkekU; 40000]ofj"B ukxfjd 100000 | H32: /kkjk 80DDB - fof'k"V jkxks ds fpfdRlk mipkj gsrq dVkSrh ¼lkekU; 40000]ofj"B ukxfjd 100000 | I32: /kkjk 80DDB - fof'k"V jkxks ds fpfdRlk mipkj gsrq dVkSrh ¼lkekU; 40000]ofj"B ukxfjd 100000 | J32: /kkjk 80DDB - fof'k"V jkxks ds fpfdRlk mipkj gsrq dVkSrh ¼lkekU; 40000]ofj"B ukxfjd 100000 | K32: /kkjk 80DDB - fof'k"V jkxks ds fpfdRlk mipkj gsrq dVkSrh ¼lkekU; 40000]ofj"B ukxfjd 100000 | L32: Rs. | M32: 0.00
C33: 4 | D33: धारा 80E - उच्च शिक्षा हेतु ऋण पर ब्याज | E33: /kkjk 80E - mPp f'k{kk gsrq _.k ij C;kt | F33: /kkjk 80E - mPp f'k{kk gsrq _.k ij C;kt | G33: /kkjk 80E - mPp f'k{kk gsrq _.k ij C;kt | H33: /kkjk 80E - mPp f'k{kk gsrq _.k ij C;kt | I33: /kkjk 80E - mPp f'k{kk gsrq _.k ij C;kt | J33: /kkjk 80E - mPp f'k{kk gsrq _.k ij C;kt | K33: /kkjk 80E - mPp f'k{kk gsrq _.k ij C;kt | L33: Rs. | M33: 0.00
C34: 5 | D34: धारा 80G - धर्मार्थ संस्थाओं को दिए गए दान ( क श्रेणी 100% एंव ख श्रेणी 50 % ) | L34: Rs. | M34: =K34+I34 -> 0.00
C35: 6 | D35: धारा 80U - स्थाई शारीरिक विशेष योग्यजन ( अधिकतम 75000, 80 % विशेष योग्यजन 125000 रूपये की छूट) | E35: /kkjk 80U - LFkkbZ 'kkjhfjd fo'ks"k ;ksX;tu ¼ vf/kdre 75000]80% fo'ks"k ;ksX;tu 125000) | F35: /kkjk 80U - LFkkbZ 'kkjhfjd fo'ks"k ;ksX;tu ¼ vf/kdre 75000]80% fo'ks"k ;ksX;tu 125000) | G35: /kkjk 80U - LFkkbZ 'kkjhfjd fo'ks"k ;ksX;tu ¼ vf/kdre 75000]80% fo'ks"k ;ksX;tu 125000) | H35: /kkjk 80U - LFkkbZ 'kkjhfjd fo'ks"k ;ksX;tu ¼ vf/kdre 75000]80% fo'ks"k ;ksX;tu 125000) | I35: /kkjk 80U - LFkkbZ 'kkjhfjd fo'ks"k ;ksX;tu ¼ vf/kdre 75000]80% fo'ks"k ;ksX;tu 125000) | J35: /kkjk 80U - LFkkbZ 'kkjhfjd fo'ks"k ;ksX;tu ¼ vf/kdre 75000]80% fo'ks"k ;ksX;tu 125000) | K35: /kkjk 80U - LFkkbZ 'kkjhfjd fo'ks"k ;ksX;tu ¼ vf/kdre 75000]80% fo'ks"k ;ksX;tu 125000) | L35: Rs. | M35: 0.00
C36: 7 | D36: धारा 80GGA - अनुमोदित वैज्ञानिक,सामाजिक,ग्रामीण विकास हेतु दिया गया दान | E36: /kkjk 80GGA - vuqekfnr oSKkfud]lkekftd]xzkeh.k fodkl gsrq fn;k x;k nku | F36: /kkjk 80GGA - vuqekfnr oSKkfud]lkekftd]xzkeh.k fodkl gsrq fn;k x;k nku | G36: /kkjk 80GGA - vuqekfnr oSKkfud]lkekftd]xzkeh.k fodkl gsrq fn;k x;k nku | H36: /kkjk 80GGA - vuqekfnr oSKkfud]lkekftd]xzkeh.k fodkl gsrq fn;k x;k nku | I36: /kkjk 80GGA - vuqekfnr oSKkfud]lkekftd]xzkeh.k fodkl gsrq fn;k x;k nku | J36: /kkjk 80GGA - vuqekfnr oSKkfud]lkekftd]xzkeh.k fodkl gsrq fn;k x;k nku | K36: /kkjk 80GGA - vuqekfnr oSKkfud]lkekftd]xzkeh.k fodkl gsrq fn;k x;k nku | L36: Rs. | M36: 0.00
C37: 8 | D37: धारा 80 TTA - बचत खाते के ब्याज पर छूट ( अधिकतम 10000 रूपये ) | E37: /kkjk 80GGA - vuqekfnr oSKkfud]lkekftd]xzkeh.k fodkl gsrq fn;k x;k nku | F37: /kkjk 80GGA - vuqekfnr oSKkfud]lkekftd]xzkeh.k fodkl gsrq fn;k x;k nku | G37: /kkjk 80GGA - vuqekfnr oSKkfud]lkekftd]xzkeh.k fodkl gsrq fn;k x;k nku | H37: /kkjk 80GGA - vuqekfnr oSKkfud]lkekftd]xzkeh.k fodkl gsrq fn;k x;k nku | I37: /kkjk 80GGA - vuqekfnr oSKkfud]lkekftd]xzkeh.k fodkl gsrq fn;k x;k nku | J37: /kkjk 80GGA - vuqekfnr oSKkfud]lkekftd]xzkeh.k fodkl gsrq fn;k x;k nku | K37: /kkjk 80GGA - vuqekfnr oSKkfud]lkekftd]xzkeh.k fodkl gsrq fn;k x;k nku | L37: Rs. | M37: 0.00
B38: कुल योग ( 1 से 8 तक ) | L38: Rs. | M38: =M30+M31+M32+M33+M34+M35+M36+M37 -> 0.00
B39: 10 | C39: कुल कटौती | L39: Rs. | M39: =M28+M38 -> 0.00
B40: 11 | C40: कर योग्य आय | L40: Rs. | M40: =M14-M39 -> 940490.00
B41: 12 | C41: कुल आय की राशि का 10 के गुणांक में गणना | L41: Rs. | M41: =ROUND(M40,-1) -> 940490.00
B42: 13 | C42: सामान्य आयकर स्लैब | I42: आयकर योग्य राशि
C43: 0 - 2,50,000 | D43: 0-250000 | E43: 0-250000 | F43: 0-250000 | G43: 0-250000 | H43: 0% | I43: =IF($M$41>250000,250000,$M$41) -> 250000 | L43: Rs. | M43: =I43*H43 -> 0.00
C44: 2,50,001 - 5,00,000 | D44: 250001-500000 | E44: 250001-500000 | F44: 250001-500000 | G44: 250001-500000 | H44: 5% | I44: =IF($M$41>500000,250000,$M$41-I43) -> 250000 | L44: Rs. | M44: =ROUND(I44*H44,0) -> 12500.00
C45: 5,00,001 - 7,50,000 | D45: 250001-500000 | E45: 250001-500000 | F45: 250001-500000 | G45: 250001-500000 | H45: 10% | I45: =IF($M$41>500000,250000,$M$41-I44) -> 250000 | L45: Rs. | M45: =ROUND(I45*H45,0) -> 25000.00
C46: 7,50,001 - 10,00,000 | D46: 500001-750000 | E46: 500001-750000 | F46: 500001-750000 | G46: 500001-750000 | H46: 15% | I46: =IF($M$41>1000000,500000,$M$41-I43-I44) -> 440490 | L46: Rs. | M46: =ROUND(I46*H46,0) -> 66074.00
C47: 10,00,001 - 12,50,000 | D47: 1000001-1250000 | E47: 1000001-1250000 | F47: 1000001-1250000 | G47: 1000001-1250000 | H47: 20% | I47: =IF($M$41>1250000,500000,$M$41-I44-I46-I43) -> 0 | L47: Rs. | M47: =I47*H47 -> 0.00
C48: 12,50,001 - 15,00,000 | D48: 1000001-1250000 | E48: 1000001-1250000 | F48: 1000001-1250000 | G48: 1000001-1250000 | H48: 25% | I48: =IF($M$41>1500000,250000,$M$41-I46-I47-I44-I43) -> 0 | L48: Rs. | M48: 0.00
C49: Above 15,00,000 | D49: 1250001-1500000 | E49: 1250001-1500000 | F49: 1250001-1500000 | G49: 1250001-1500000 | H49: 30% | I49: =IF($M$41<1500000,,$M$41-I47-I48-I46-I44-I43) -> 0 | L49: Rs. | M49: 0.00
B50: 14 | C50: योग आयकर | I50: =I44+I45+I46+I47+I48+I49 -> 940490.00 | L50: Rs. | M50: =SUM(M43:M49) -> 103574.00
B51: 15 | C51: धारा 87 (A) - ( 2.50 लाख से 5.00 लाख तक की कर योग्य आय पर अधिकतम छूट 12500 रूपये | L51: Rs. | M51: =IF(M41<=500000,M44,0) -> 0.00
B52: छूट के पश्चात् कुल आयकर | L52: Rs. | M52: =M50-M51 -> 103574.00
B53: शिक्षा उपकर 2% एंव उच्च शिक्षा के लिए अधिभार 2% TOTAL 4% | L53: Rs. | M53: =ROUND(M52*4%,0) -> 4143.00
B54: कुल आयकर | L54: Rs. | M54: =ROUND(M52+M53,0) -> 107717.00
B55: राहत धारा 89 के तहत छूट | L55: Rs. | M55: 0.00
B56: कुल शेष आयकर | L56: Rs. | M56: =M54-M55 -> 107717.00
B57: विभिन्न स्रोतों से हुई मासिक आयकर कटौती
C58: ='OLD TAX REGIME'!C57:E57 -> 2021-03-01 | F58: ='GA55'!U13 -> 0.00 | G58: ='OLD TAX REGIME'!G57:I57 -> 2021-09-01 | J58: ='GA55'!U19 -> 0.00 | L58: Rs. | M58: अन्य एरियर से कटौती
C59: ='OLD TAX REGIME'!C58:E58 -> 2021-04-01 | F59: ='GA55'!U14 -> 0.00 | G59: ='OLD TAX REGIME'!G58:I58 -> 2021-10-01 | J59: ='GA55'!U20 -> 0.00 | L59: Rs.
C60: ='OLD TAX REGIME'!C59:E59 -> 2021-05-01 | F60: ='GA55'!U15 -> 0.00 | G60: ='OLD TAX REGIME'!G59:I59 -> 2021-11-01 | J60: ='GA55'!U21 -> 0.00 | L60: Rs.
C61: ='OLD TAX REGIME'!C60:E60 -> 2021-06-01 | F61: ='GA55'!U16 -> 0.00 | G61: ='OLD TAX REGIME'!G60:I60 -> 2021-12-01 | J61: ='GA55'!U22 -> 0.00 | L61: Rs. | M61: =SUM('GA55'!U25:U31) -> 0.00
C62: ='OLD TAX REGIME'!C61:E61 -> 2021-07-01 | F62: ='GA55'!U17 -> 0.00 | G62: ='OLD TAX REGIME'!G61:I61 -> 2022-01-01 | J62: ='GA55'!U23 -> 0.00 | L62: Rs.
C63: ='OLD TAX REGIME'!C62:E62 -> 2021-08-01 | F63: ='GA55'!U18 -> 0.00 | G63: ='OLD TAX REGIME'!G62:I62 -> 2022-02-01 | J63: ='GA55'!U24 -> 0.00 | L63: Rs.
C64: कुल कटौती का योग | L64: Rs. | M64: =F58+F59+F60+F61+F62+F63+J58+J59+J60+J61+J62+J63+M61 -> 0.00
C65: Income tax Refundable | L65: Rs. | M65: =M56-M64 -> 107717.00
K68: हस्ताक्षर कर्मचारी/ अधिकारी

Sheet PAY SLIP
B1: वेतन पर्ची
B2: Pay Slip
B3: DDO OFFICE : | D3: ='GA55'!B7 -> OFFICE GOVT.SR.SEC.SCHOOL ALNIYAWAS DISTT.-NAGAUR
B4: TV NO.& DATE : | D4: =VLOOKUP(E5,'GA55'!C13:Y31,23,0) -> 0 | G4: BILL NO. & DATE : | I4: =VLOOKUP(E5,'GA55'!C13:Y24,22,0) -> 0
D5: Month : | E5: 2021-08-01 | Q5: ='GA55'!C13 -> 2021-03-01
B6: कर्मचारी का नाम | G6: पदनाम | Q6: ='GA55'!C14 -> 2021-04-01
Q7: ='GA55'!C15 -> 2021-05-01
B8: NAME | C8: ='GA55'!D9 -> VIJAY KUMAR PRAJAPAT | G8: Designation : | I8: ='GA55'!J9 -> lecturer | Q8: ='GA55'!C16 -> 2021-06-01
Q9: ='GA55'!C17 -> 2021-07-01
B10: कर्मचारी पहचान संख्या | G10: बैंक खाता संख्या | Q10: ='GA55'!C18 -> 2021-08-01
Q11: ='GA55'!C19 -> 2021-09-01
B12: Emp. Id | D12: ='GA55'!W11 -> RJNA0000000000 | G12: A/C. No. | H12: ='GA55'!W10 -> 61000000000 | Q12: ='GA55'!C20 -> 2021-10-01
Q13: ='GA55'!C21 -> 2021-11-01
B14: जीपीएफ | G14: एसआई नम्बर | Q14: ='GA55'!C22 -> 2021-12-01
Q15: ='GA55'!C23 -> 2022-01-01
B16: GPF/CPF No. | D16: ='GA55'!H10 -> 111111111111 | G16: SI No. | H16: ='GA55'!D10 -> 0 | Q16: ='GA55'!C24 -> 2022-02-01
B18: बैंक शाखा
B20: Bank/ Branch | D20: ='GA55'!M10 -> STATE BANK OF INDIA RIYAN BARI
B22: INCOME | G22: DEDUCTION
B24: Basic | D24: =VLOOKUP(E5,ga,2,0) -> 53900.00 | G24: ECPenF | I24: =VLOOKUP($E$5,'GA55'!$C$13:$Y$24,10,0) -> 6899.00
B25: D.A. | D25: =VLOOKUP($E$5,'GA55'!C13:Y24,3,0) -> 15092.00 | G25: GPF | I25: =VLOOKUP($E$5,'GA55'!$C$13:$Y$24,11,0) -> 0.00
B26: H.R.A. | D26: =VLOOKUP($E$5,'GA55'!C13:Y24,4,0) -> 4851.00 | G26: GPF LOAN | I26: =VLOOKUP($E$5,'GA55'!$C$13:$Y$24,12,0) -> 0.00
B27: Washing Allowance | D27: 0.00 | G27: SI | I27: =VLOOKUP($E$5,'GA55'!$C$13:$Y$24,14,0) -> 7000.00
B28: Handicap allowance | D28: 0.00 | G28: SI LOAN | I28: =VLOOKUP($E$5,'GA55'!$C$13:$Y$24,15,0) -> 0.00
B29: BONUS | D29: 0.00 | G29: RPMF | I29: 0.00
B30: Other | D30: 0.00 | G30: LIC | I30: =VLOOKUP($E$5,'GA55'!$C$13:$Y$24,16,0) -> 1070.00
B31: Other | D31: 0.00 | G31: IT. TAX | I31: =VLOOKUP($E$5,'GA55'!$C$13:$Y$24,19,0) -> 0.00
G32: GIS | I32: =VLOOKUP($E$5,'GA55'!$C$13:$Y$24,17,0) -> 0.00
B33: TOTAL PAY | D33: =VLOOKUP(E5,'GA55'!C13:W24,9,0) -> 73843.00 | G33: COVID 19 | I33: =VLOOKUP($E$5,'GA55'!$C$13:$W$24,18,0) -> 0.00
G34: TOTAL DED.: | I34: =VLOOKUP($E$5,'GA55'!$C$13:$Y$24,20,0) -> 15299.00
D36: नियत वेतन
D37: NET PAY | F37: =VLOOKUP($E$5,'GA55'!$C$13:$Y$24,21,0) -> 58544.00 | H37: Rs.
B38: RUPEES IN WORDS | D38: =PROPER(SpellNumber(F37)) -> Fifty-Eight Thousand Five Hundred Forty-Four
B44: Signature of Employee | G44: Signature of DDO
B46: Print Date: | D46: =NOW() -> 2021-12-05T11:51:20.910
